Body Name,Body,Service division categorisation,Expense Type,Date paid,Transaction Reference,Net,Supplier Name,Redacted/Excluded
South Holland District Council,http://statistics.data.gov.uk/id/local-authority/32UF,Environmental Services,Agency Staff,01/05/2014,IJ00028903,193.50,247 Personnel Ltd, 
South Holland District Council,http://statistics.data.gov.uk/id/local-authority/32UF,Environmental Services,Agency Staff,01/05/2014,IJ00028903,486.00,247 Personnel Ltd, 
South Holland District Council,http://statistics.data.gov.uk/id/local-authority/32UF,Community Development,Buildings Maintenance - Responsive,01/05/2014,IJ00028799,659.96,Adt Fire And Security Plc, 
South Holland District Council,http://statistics.data.gov.uk/id/local-authority/32UF,Community Development,Buildings Maintenance - Responsive,01/05/2014,IJ00028867,1312.35,Adt Fire And Security Plc, 
South Holland District Council,http://statistics.data.gov.uk/id/local-authority/32UF,Asset and Property,Fixtures And Fittings,01/05/2014,IJ00028875,1778.96,Adt Fire And Security Plc, 
South Holland District Council,http://statistics.data.gov.uk/id/local-authority/32UF,Community Development,Furniture and Equipment,01/05/2014,IJ00028849,515.50,Alarmline Security System, 
South Holland District Council,http://statistics.data.gov.uk/id/local-authority/32UF,Environmental Services,Agency Staff,01/05/2014,IJ00028802,131.95,Blue Arrow Ltd, 
South Holland District Council,http://statistics.data.gov.uk/id/local-authority/32UF,Environmental Services,Agency Staff,01/05/2014,IJ00028802,1324.59,Blue Arrow Ltd, 
South Holland District Council,http://statistics.data.gov.uk/id/local-authority/32UF,Environmental Services,Agency Staff,01/05/2014,IJ00028802,928.72,Blue Arrow Ltd, 
South Holland District Council,http://statistics.data.gov.uk/id/local-authority/32UF,Environmental Services,Agency Staff,01/05/2014,IJ00028802,309.58,Blue Arrow Ltd, 
South Holland District Council,http://statistics.data.gov.uk/id/local-authority/32UF,Environmental Services,Agency Staff,01/05/2014,IJ00028802,96.74,Blue Arrow Ltd, 
South Holland District Council,http://statistics.data.gov.uk/id/local-authority/32UF,Building Control,Buildings Maintenance - Programmed,01/05/2014,IJ00028860,780.00,Brooks (Spalding) Ltd, 
South Holland District Council,http://statistics.data.gov.uk/id/local-authority/32UF,Building Control,Buildings Maintenance - Programmed,01/05/2014,IJ00028861,780.00,Brooks (Spalding) Ltd, 
South Holland District Council,http://statistics.data.gov.uk/id/local-authority/32UF,Building Control,Buildings Maintenance - Programmed,01/05/2014,IJ00028862,585.00,Brooks (Spalding) Ltd, 
South Holland District Council,http://statistics.data.gov.uk/id/local-authority/32UF,Finance,Professional & Contractors Fees,01/05/2014,IJ00028958,702.06,Capita Business Services Ltd, 
South Holland District Council,http://statistics.data.gov.uk/id/local-authority/32UF,Housing Landlord Manager,Fuel & Oil,01/05/2014,IJ00028796,393.83,C H Jones Ltd, 
South Holland District Council,http://statistics.data.gov.uk/id/local-authority/32UF,Environmental Services,Fuel & Oil,01/05/2014,IJ00028796,5.20,C H Jones Ltd, 
South Holland District Council,http://statistics.data.gov.uk/id/local-authority/32UF,Environmental Services,Fuel & Oil,01/05/2014,IJ00028796,299.46,C H Jones Ltd, 
South Holland District Council,http://statistics.data.gov.uk/id/local-authority/32UF,Environmental Services,Fuel & Oil,01/05/2014,IJ00028796,2948.43,C H Jones Ltd, 
South Holland District Council,http://statistics.data.gov.uk/id/local-authority/32UF,Environmental Services,Fuel & Oil,01/05/2014,IJ00028796,475.67,C H Jones Ltd, 
South Holland District Council,http://statistics.data.gov.uk/id/local-authority/32UF,Environmental Services,Fuel & Oil,01/05/2014,IJ00028796,3316.74,C H Jones Ltd, 
South Holland District Council,http://statistics.data.gov.uk/id/local-authority/32UF,Housing Landlord Manager,Fuel & Oil,01/05/2014,IJ00028796,270.92,C H Jones Ltd, 
South Holland District Council,http://statistics.data.gov.uk/id/local-authority/32UF,Housing Landlord Manager,Fuel & Oil,01/05/2014,IJ00028796,154.13,C H Jones Ltd, 
South Holland District Council,http://statistics.data.gov.uk/id/local-authority/32UF,Environmental Services,Fuel & Oil,01/05/2014,IJ00028796,25.22,C H Jones Ltd, 
South Holland District Council,http://statistics.data.gov.uk/id/local-authority/32UF,Environmental Services,Fuel & Oil,01/05/2014,IJ00028796,5.20,C H Jones Ltd, 
South Holland District Council,http://statistics.data.gov.uk/id/local-authority/32UF,Environmental Health,Fuel & Oil,01/05/2014,IJ00028796,46.43,C H Jones Ltd, 
South Holland District Council,http://statistics.data.gov.uk/id/local-authority/32UF,Environmental Services,Fuel & Oil,01/05/2014,IJ00028796,62.45,C H Jones Ltd, 
South Holland District Council,http://statistics.data.gov.uk/id/local-authority/32UF,Housing Landlord Manager,Fuel & Oil,01/05/2014,IJ00028929,396.05,C H Jones Ltd, 
South Holland District Council,http://statistics.data.gov.uk/id/local-authority/32UF,Environmental Services,Fuel & Oil,01/05/2014,IJ00028929,4.22,C H Jones Ltd, 
South Holland District Council,http://statistics.data.gov.uk/id/local-authority/32UF,Environmental Services,Fuel & Oil,01/05/2014,IJ00028929,376.53,C H Jones Ltd, 
South Holland District Council,http://statistics.data.gov.uk/id/local-authority/32UF,Environmental Services,Fuel & Oil,01/05/2014,IJ00028929,1943.32,C H Jones Ltd, 
South Holland District Council,http://statistics.data.gov.uk/id/local-authority/32UF,Environmental Services,Fuel & Oil,01/05/2014,IJ00028929,580.02,C H Jones Ltd, 
South Holland District Council,http://statistics.data.gov.uk/id/local-authority/32UF,Environmental Services,Fuel & Oil,01/05/2014,IJ00028929,2004.05,C H Jones Ltd, 
South Holland District Council,http://statistics.data.gov.uk/id/local-authority/32UF,Housing Landlord Manager,Fuel & Oil,01/05/2014,IJ00028929,237.64,C H Jones Ltd, 
South Holland District Council,http://statistics.data.gov.uk/id/local-authority/32UF,Housing Landlord Manager,Fuel & Oil,01/05/2014,IJ00028929,65.37,C H Jones Ltd, 
South Holland District Council,http://statistics.data.gov.uk/id/local-authority/32UF,Environmental Services,Fuel & Oil,01/05/2014,IJ00028929,24.39,C H Jones Ltd, 
South Holland District Council,http://statistics.data.gov.uk/id/local-authority/32UF,Environmental Services,Fuel & Oil,01/05/2014,IJ00028929,4.22,C H Jones Ltd, 
South Holland District Council,http://statistics.data.gov.uk/id/local-authority/32UF,Environmental Services,Fuel & Oil,01/05/2014,IJ00028929,66.77,C H Jones Ltd, 
South Holland District Council,http://statistics.data.gov.uk/id/local-authority/32UF,Economic Development,Professional & Contractors Fees,01/05/2014,IJ00028806,760.00,Dfb Associates Limited, 
South Holland District Council,http://statistics.data.gov.uk/id/local-authority/32UF,Housing Landlord Manager,Sewerage Treatment Works,01/05/2014,IJ00028975,2052.00,Environment Agency, 
South Holland District Council,http://statistics.data.gov.uk/id/local-authority/32UF,Housing Landlord Manager,Sewerage Treatment Works,01/05/2014,IJ00028972,684.00,Environment Agency, 
South Holland District Council,http://statistics.data.gov.uk/id/local-authority/32UF,Housing Landlord Manager,Sewerage Treatment Works,01/05/2014,IJ00028972,684.00,Environment Agency, 
South Holland District Council,http://statistics.data.gov.uk/id/local-authority/32UF,Housing Landlord Manager,Sewerage Treatment Works,01/05/2014,IJ00028972,1026.00,Environment Agency, 
South Holland District Council,http://statistics.data.gov.uk/id/local-authority/32UF,Housing Landlord Manager,Sewerage Treatment Works,01/05/2014,IJ00028972,684.00,Environment Agency, 
South Holland District Council,http://statistics.data.gov.uk/id/local-authority/32UF,Housing Landlord Manager,Sewerage Treatment Works,01/05/2014,IJ00028972,684.00,Environment Agency, 
South Holland District Council,http://statistics.data.gov.uk/id/local-authority/32UF,Housing Landlord Manager,Sewerage Treatment Works,01/05/2014,IJ00028972,684.00,Environment Agency, 
South Holland District Council,http://statistics.data.gov.uk/id/local-authority/32UF,Housing Landlord Manager,Sewerage Treatment Works,01/05/2014,IJ00028972,2052.00,Environment Agency, 
South Holland District Council,http://statistics.data.gov.uk/id/local-authority/32UF,Housing Landlord Manager,Sewerage Treatment Works,01/05/2014,IJ00028972,1026.00,Environment Agency, 
South Holland District Council,http://statistics.data.gov.uk/id/local-authority/32UF,Housing Landlord Manager,Sewerage Treatment Works,01/05/2014,IJ00028972,1026.00,Environment Agency, 
South Holland District Council,http://statistics.data.gov.uk/id/local-authority/32UF,Housing Landlord Manager,Buildings Maintenance - Responsive,01/05/2014,IJ00028978,591.82,Envirovent Ltd, 
South Holland District Council,http://statistics.data.gov.uk/id/local-authority/32UF,Housing Landlord Manager,Buildings Maintenance - Responsive,01/05/2014,IJ00028925,591.82,Envirovent Ltd, 
South Holland District Council,http://statistics.data.gov.uk/id/local-authority/32UF,Asset and Property,Gas,01/05/2014,IJ00028881,1707.96,Espo Gas And Electricity, 
South Holland District Council,http://statistics.data.gov.uk/id/local-authority/32UF,Capital,Works to Buildings (main Contractor),01/05/2014,IJ00028794,950.00,Frontline Data Ltd, 
South Holland District Council,http://statistics.data.gov.uk/id/local-authority/32UF,Capital,Works to Buildings (main Contractor),01/05/2014,IJ00028795,3507.00,Frontline Data Ltd, 
South Holland District Council,http://statistics.data.gov.uk/id/local-authority/32UF,Democratic Services,Other Miscellaneous Expenses,01/05/2014,IJ00028871,500.00,Gedney Hill & District Memorial Hall, 
South Holland District Council,http://statistics.data.gov.uk/id/local-authority/32UF,Environmental Services,Agency Staff,01/05/2014,IJ00028904,78.56,Integrity Plus Ltd, 
South Holland District Council,http://statistics.data.gov.uk/id/local-authority/32UF,Environmental Services,Agency Staff,01/05/2014,IJ00028904,147.30,Integrity Plus Ltd, 
South Holland District Council,http://statistics.data.gov.uk/id/local-authority/32UF,Environmental Services,Agency Staff,01/05/2014,IJ00028904,73.66,Integrity Plus Ltd, 
South Holland District Council,http://statistics.data.gov.uk/id/local-authority/32UF,Environmental Services,Agency Staff,01/05/2014,IJ00028904,432.07,Integrity Plus Ltd, 
South Holland District Council,http://statistics.data.gov.uk/id/local-authority/32UF,Environmental Services,Agency Staff,01/05/2014,IJ00028902,157.12,Integrity Plus Ltd, 
South Holland District Council,http://statistics.data.gov.uk/id/local-authority/32UF,Environmental Services,Agency Staff,01/05/2014,IJ00028902,294.60,Integrity Plus Ltd, 
South Holland District Council,http://statistics.data.gov.uk/id/local-authority/32UF,Environmental Services,Agency Staff,01/05/2014,IJ00028902,147.30,Integrity Plus Ltd, 
South Holland District Council,http://statistics.data.gov.uk/id/local-authority/32UF,Environmental Services,Agency Staff,01/05/2014,IJ00028902,147.30,Integrity Plus Ltd, 
South Holland District Council,http://statistics.data.gov.uk/id/local-authority/32UF,Housing Landlord Manager,Agency Staff,01/05/2014,IJ00028960,544.83,James Andrews Recruitment Solutions, 
South Holland District Council,http://statistics.data.gov.uk/id/local-authority/32UF,Community Development,Leisure Management,01/05/2014,IJ00028816,5458.54,Leisure Connection Ltd, 
South Holland District Council,http://statistics.data.gov.uk/id/local-authority/32UF,Community Development,Leisure Management,01/05/2014,IJ00028816,5458.54,Leisure Connection Ltd, 
South Holland District Council,http://statistics.data.gov.uk/id/local-authority/32UF,Housing Landlord Manager,Buildings Maintenance - Responsive,01/05/2014,IJ00028994,2830.00,L Fragale, 
South Holland District Council,http://statistics.data.gov.uk/id/local-authority/32UF,Asset and Property,Buildings Maintenance - Responsive,01/05/2014,IJ00028897,1008.14,Otis Ltd, 
South Holland District Council,http://statistics.data.gov.uk/id/local-authority/32UF,Housing Landlord Manager,Materials and Consumables,01/05/2014,IJ00028951,682.15,Rexel Uk Ltd, 
South Holland District Council,http://statistics.data.gov.uk/id/local-authority/32UF,Asset and Property,Electricity,01/05/2014,IJ00028837,3830.85,Southern Electric, 
South Holland District Council,http://statistics.data.gov.uk/id/local-authority/32UF,Housing Landlord Manager,Electricity,01/05/2014,IJ00028953,164.74,Southern Electric, 
South Holland District Council,http://statistics.data.gov.uk/id/local-authority/32UF,Housing Landlord Manager,Electricity,01/05/2014,IJ00028953,84.69,Southern Electric, 
South Holland District Council,http://statistics.data.gov.uk/id/local-authority/32UF,Housing Landlord Manager,Electricity,01/05/2014,IJ00028953,679.01,Southern Electric, 
South Holland District Council,http://statistics.data.gov.uk/id/local-authority/32UF,Housing Landlord Manager,Electricity,01/05/2014,IJ00028953,190.34,Southern Electric, 
South Holland District Council,http://statistics.data.gov.uk/id/local-authority/32UF,Housing Landlord Manager,Electricity,01/05/2014,IJ00028953,203.06,Southern Electric, 
South Holland District Council,http://statistics.data.gov.uk/id/local-authority/32UF,Housing Landlord Manager,Electricity,01/05/2014,IJ00028953,124.31,Southern Electric, 
South Holland District Council,http://statistics.data.gov.uk/id/local-authority/32UF,Housing Landlord Manager,Electricity,01/05/2014,IJ00028953,134.59,Southern Electric, 
South Holland District Council,http://statistics.data.gov.uk/id/local-authority/32UF,Housing Landlord Manager,Electricity,01/05/2014,IJ00028953,219.14,Southern Electric, 
South Holland District Council,http://statistics.data.gov.uk/id/local-authority/32UF,Housing Landlord Manager,Electricity,01/05/2014,IJ00028953,91.33,Southern Electric, 
South Holland District Council,http://statistics.data.gov.uk/id/local-authority/32UF,Housing Landlord Manager,Electricity,01/05/2014,IJ00028953,219.66,Southern Electric, 
South Holland District Council,http://statistics.data.gov.uk/id/local-authority/32UF,Housing Landlord Manager,Electricity,01/05/2014,IJ00028953,55.87,Southern Electric, 
South Holland District Council,http://statistics.data.gov.uk/id/local-authority/32UF,Housing Landlord Manager,Electricity,01/05/2014,IJ00028953,219.14,Southern Electric, 
South Holland District Council,http://statistics.data.gov.uk/id/local-authority/32UF,Asset and Property,Electricity,01/05/2014,IJ00028953,57.06,Southern Electric, 
South Holland District Council,http://statistics.data.gov.uk/id/local-authority/32UF,Asset and Property,Electricity,01/05/2014,IJ00028953,204.34,Southern Electric, 
South Holland District Council,http://statistics.data.gov.uk/id/local-authority/32UF,Asset and Property,Electricity,01/05/2014,IJ00028953,206.77,Southern Electric, 
South Holland District Council,http://statistics.data.gov.uk/id/local-authority/32UF,Asset and Property,Electricity,01/05/2014,IJ00028953,168.62,Southern Electric, 
South Holland District Council,http://statistics.data.gov.uk/id/local-authority/32UF,Environmental Services,Electricity,01/05/2014,IJ00028953,2012.31,Southern Electric, 
South Holland District Council,http://statistics.data.gov.uk/id/local-authority/32UF,Housing Landlord Manager,Electricity,01/05/2014,IJ00028953,205.33,Southern Electric, 
South Holland District Council,http://statistics.data.gov.uk/id/local-authority/32UF,Housing Landlord Manager,Electricity,01/05/2014,IJ00028953,166.35,Southern Electric, 
South Holland District Council,http://statistics.data.gov.uk/id/local-authority/32UF,Housing Landlord Manager,Electricity,01/05/2014,IJ00028953,95.63,Southern Electric, 
South Holland District Council,http://statistics.data.gov.uk/id/local-authority/32UF,Housing Landlord Manager,Electricity,01/05/2014,IJ00028953,573.80,Southern Electric, 
South Holland District Council,http://statistics.data.gov.uk/id/local-authority/32UF,Housing Landlord Manager,Electricity,01/05/2014,IJ00028953,31.98,Southern Electric, 
South Holland District Council,http://statistics.data.gov.uk/id/local-authority/32UF,Housing Landlord Manager,Electricity,01/05/2014,IJ00028953,94.96,Southern Electric, 
South Holland District Council,http://statistics.data.gov.uk/id/local-authority/32UF,Housing Landlord Manager,Electricity,01/05/2014,IJ00028953,163.46,Southern Electric, 
South Holland District Council,http://statistics.data.gov.uk/id/local-authority/32UF,Housing Landlord Manager,Electricity,01/05/2014,IJ00028953,53.14,Southern Electric, 
South Holland District Council,http://statistics.data.gov.uk/id/local-authority/32UF,Housing Landlord Manager,Electricity,01/05/2014,IJ00028953,106.75,Southern Electric, 
South Holland District Council,http://statistics.data.gov.uk/id/local-authority/32UF,Housing Landlord Manager,Electricity,01/05/2014,IJ00028953,47.77,Southern Electric, 
South Holland District Council,http://statistics.data.gov.uk/id/local-authority/32UF,Housing Landlord Manager,Electricity,01/05/2014,IJ00028953,75.13,Southern Electric, 
South Holland District Council,http://statistics.data.gov.uk/id/local-authority/32UF,Housing Landlord Manager,Electricity,01/05/2014,IJ00028953,69.91,Southern Electric, 
South Holland District Council,http://statistics.data.gov.uk/id/local-authority/32UF,Housing Landlord Manager,Electricity,01/05/2014,IJ00028953,73.88,Southern Electric, 
South Holland District Council,http://statistics.data.gov.uk/id/local-authority/32UF,Housing Landlord Manager,Electricity,01/05/2014,IJ00028953,79.94,Southern Electric, 
South Holland District Council,http://statistics.data.gov.uk/id/local-authority/32UF,Environmental Services,Electricity,01/05/2014,IJ00028953,30.18,Southern Electric, 
South Holland District Council,http://statistics.data.gov.uk/id/local-authority/32UF,Environmental Services,Electricity,01/05/2014,IJ00028953,168.65,Southern Electric, 
South Holland District Council,http://statistics.data.gov.uk/id/local-authority/32UF,Finance,Internal Drainage Board Levies,01/05/2014,IJ00028992,589172.50,South Holland Internal Drainage Board, 
South Holland District Council,http://statistics.data.gov.uk/id/local-authority/32UF,Housing Landlord Manager,Buildings Maintenance - Responsive,01/05/2014,IJ00028974,850.00,South Holland Maintenance Ltd, 
South Holland District Council,http://statistics.data.gov.uk/id/local-authority/32UF,Housing Landlord Manager,Buildings Maintenance - Responsive,01/05/2014,IJ00028977,650.00,South Holland Maintenance Ltd, 
South Holland District Council,http://statistics.data.gov.uk/id/local-authority/32UF,Housing Landlord Manager,Buildings Maintenance - Responsive,01/05/2014,IJ00028979,650.00,South Holland Maintenance Ltd, 
South Holland District Council,http://statistics.data.gov.uk/id/local-authority/32UF,Housing Landlord Manager,Buildings Maintenance - Responsive,01/05/2014,IJ00028982,850.00,South Holland Maintenance Ltd, 
South Holland District Council,http://statistics.data.gov.uk/id/local-authority/32UF,Environmental Services,Materials and Consumables,01/05/2014,IJ00028847,565.90,Spaldings (Uk) Ltd, 
South Holland District Council,http://statistics.data.gov.uk/id/local-authority/32UF,Housing,Grants and Contributions to Outside Bodies- No Service Recei,01/05/2014,IJ00028817,2416.00,Stuart Taplin, 
South Holland District Council,http://statistics.data.gov.uk/id/local-authority/32UF,Environmental Services,Agency Staff,01/05/2014,IJ00028840,339.72,The Best Connection Group Ltd, 
South Holland District Council,http://statistics.data.gov.uk/id/local-authority/32UF,Environmental Services,Agency Staff,01/05/2014,IJ00028840,185.07,The Best Connection Group Ltd, 
South Holland District Council,http://statistics.data.gov.uk/id/local-authority/32UF,Environmental Services,Agency Staff,01/05/2014,IJ00028840,77.61,The Best Connection Group Ltd, 
South Holland District Council,http://statistics.data.gov.uk/id/local-authority/32UF,Environmental Services,Agency Staff,01/05/2014,IJ00028967,142.72,The Best Connection Group Ltd, 
South Holland District Council,http://statistics.data.gov.uk/id/local-authority/32UF,Environmental Services,Agency Staff,01/05/2014,IJ00028967,364.16,The Best Connection Group Ltd, 
South Holland District Council,http://statistics.data.gov.uk/id/local-authority/32UF,ICT and Customer Services,Computer Software Licence Costs,01/05/2014,IJ00028930,10797.00,Trustmarque Solutions Ltd, 
South Holland District Council,http://statistics.data.gov.uk/id/local-authority/32UF,Community Development,Payments to Bodies in Respect of Income Collected,01/05/2014,IJ00028891,549.43,Twentieth Century Fox Film Co Ltd, 
South Holland District Council,http://statistics.data.gov.uk/id/local-authority/32UF,Environmental Services,Professional & Contractors Fees,01/05/2014,IJ00028850,1000.00,Tyrrell Contractors Ltd, 
South Holland District Council,http://statistics.data.gov.uk/id/local-authority/32UF,Finance,Internal Drainage Board Levies,01/05/2014,IJ00028998,394752.00,Welland & Deepings Int Drain Brd, 
South Holland District Council,http://statistics.data.gov.uk/id/local-authority/32UF,Housing Landlord Manager,Void Repairs,01/05/2014,IJ00028917,930.00,Spotless Cleaning, 
South Holland District Council,http://statistics.data.gov.uk/id/local-authority/32UF,Capital,Purchase of Hardware,01/05/2014,IJ00028851,22583.21,Axial Systems Ltd, 
South Holland District Council,http://statistics.data.gov.uk/id/local-authority/32UF,Collection Fund,Precept- Lincolnshire County Council,01/05/2014,IJ00028833,2999705.00,Lincolnshire County Council, 
South Holland District Council,http://statistics.data.gov.uk/id/local-authority/32UF,Collection Fund,Precept - Lincolnshire Police,01/05/2014,IJ00028835,500188.39,LOCAL POLICE AUTHORITY FUND ACCOUNT, 
South Holland District Council,http://statistics.data.gov.uk/id/local-authority/32UF,Finance,Internal Drainage Board Levies,01/05/2014,IJ00028991,11187.00,KINGS LYNN INTERNAL DRAINAGE BOARD, 
South Holland District Council,http://statistics.data.gov.uk/id/local-authority/32UF,Finance,Internal Drainage Board Levies,01/05/2014,IJ00028993,65314.00,NORTH LEVEL DRAINAGE BOARD, 
South Holland District Council,http://statistics.data.gov.uk/id/local-authority/32UF,Finance,Telephones,01/05/2014,IJ00028863,2124.09,DAISY COMMUNICATIONS LTD, 
South Holland District Council,http://statistics.data.gov.uk/id/local-authority/32UF,Democratic Services,Other Miscellaneous Expenses,01/05/2014,IJ00028865,1500.00,Cowbit Parish Council, 
South Holland District Council,http://statistics.data.gov.uk/id/local-authority/32UF,Environmental Services,Commercial Vehicle Lease,01/05/2014,IJ00028825,710.65,NORTHRIDGE FINANCE LTD, 
South Holland District Council,http://statistics.data.gov.uk/id/local-authority/32UF,Housing Landlord Manager,Furniture and Equipment,01/05/2014,IJ00028966,630.68,VEOLIA ES UK LTD, 
South Holland District Council,http://statistics.data.gov.uk/id/local-authority/32UF,Housing Landlord Manager,Furniture and Equipment,01/05/2014,IJ00028966,630.69,VEOLIA ES UK LTD, 
South Holland District Council,http://statistics.data.gov.uk/id/local-authority/32UF,Environmental Services,Road Tax,01/05/2014,IJ00028848,2800.00,F Tempest & Sons Stickney Ltd, 
South Holland District Council,http://statistics.data.gov.uk/id/local-authority/32UF,ICT and Customer Services,Computer Software Licence Costs,01/05/2014,IJ00028864,4600.00,GOSS INTERACTIVE LTD, 
South Holland District Council,http://statistics.data.gov.uk/id/local-authority/32UF,Capital,Works to Buildings (main Contractor),01/05/2014,IJ00028797,810.60,1st Choice Insulations Ltd, 
South Holland District Council,http://statistics.data.gov.uk/id/local-authority/32UF,Environmental Health,Professional & Contractors Fees,01/05/2014,IJ00028985,750.00,Kingsley Hamilton, 
South Holland District Council,http://statistics.data.gov.uk/id/local-authority/32UF,Environmental Health,Furniture and Equipment,01/05/2014,IJ00028843,2242.91,VIP-System Ltd, 
South Holland District Council,http://statistics.data.gov.uk/id/local-authority/32UF,Community Development,Leisure Management,01/05/2014,IJ00028821,528.37,Leisure in the Community, 
South Holland District Council,http://statistics.data.gov.uk/id/local-authority/32UF,Community Development,Leisure Management,01/05/2014,IJ00028821,528.38,Leisure in the Community, 
South Holland District Council,http://statistics.data.gov.uk/id/local-authority/32UF,Environmental Services,Insurance,01/05/2014,IJ00028877,132.50,Maps Legal Assistance, 
South Holland District Council,http://statistics.data.gov.uk/id/local-authority/32UF,Environmental Services,Insurance,01/05/2014,IJ00028877,132.50,Maps Legal Assistance, 
South Holland District Council,http://statistics.data.gov.uk/id/local-authority/32UF,Housing Landlord Manager,Insurance,01/05/2014,IJ00028877,265.00,Maps Legal Assistance, 
South Holland District Council,http://statistics.data.gov.uk/id/local-authority/32UF,Capital,Works to Buildings (main Contractor),01/05/2014,IJ00028955,575.00,MCP Environmental, 
South Holland District Council,http://statistics.data.gov.uk/id/local-authority/32UF,Capital,Works to Buildings (main Contractor),01/05/2014,IJ00028959,1130.00,MCP Environmental, 
South Holland District Council,http://statistics.data.gov.uk/id/local-authority/32UF,Capital,Works to Buildings (main Contractor),01/05/2014,IJ00028808,111111.00,Willmott Dixon Partnerships Ltd, 
South Holland District Council,http://statistics.data.gov.uk/id/local-authority/32UF,Housing Landlord Manager,Agency Staff,01/05/2014,IJ00028804,862.50,Venn Group Limited, 
South Holland District Council,http://statistics.data.gov.uk/id/local-authority/32UF,Housing Landlord Manager,Agency Staff,01/05/2014,IJ00028805,862.50,Venn Group Limited, 
South Holland District Council,http://statistics.data.gov.uk/id/local-authority/32UF,Planning,Professional & Contractors Fees,01/05/2014,IJ00028858,1128.50,CDI AndersElite Ltd, 
South Holland District Council,http://statistics.data.gov.uk/id/local-authority/32UF,Housing,Grants and Contributions to Outside Bodies- No Service Recei,01/05/2014,IJ00028845,7855.38,M Stevens, 
South Holland District Council,http://statistics.data.gov.uk/id/local-authority/32UF,Economic Development,Grants and Contributions to Outside Bodies- No Service Recei,01/05/2014,IJ00028907,4141.25,Quarterbridge Project Management Limited, 
South Holland District Council,http://statistics.data.gov.uk/id/local-authority/32UF,ICT and Customer Services,Computer Hardware Maintenance,01/05/2014,IJ00028996,999.00,Vodafone Corporate, 
South Holland District Council,http://statistics.data.gov.uk/id/local-authority/32UF,Environmental Services,Agency Staff,08/05/2014,IJ00029105,207.00,247 Personnel Ltd, 
South Holland District Council,http://statistics.data.gov.uk/id/local-authority/32UF,Environmental Services,Agency Staff,08/05/2014,IJ00029105,353.25,247 Personnel Ltd, 
South Holland District Council,http://statistics.data.gov.uk/id/local-authority/32UF,Asset and Property,Agency Staff,08/05/2014,IJ00029083,1052.89,5 Star Facility Management, 
South Holland District Council,http://statistics.data.gov.uk/id/local-authority/32UF,Capital,Works to Buildings (main Contractor),08/05/2014,IJ00029037,4985.83,A Coupland (Surfacing) Ltd, 
South Holland District Council,http://statistics.data.gov.uk/id/local-authority/32UF,Asset and Property,Fixtures And Fittings,08/05/2014,IJ00029098,1305.50,Adt Fire And Security Plc, 
South Holland District Council,http://statistics.data.gov.uk/id/local-authority/32UF,Housing,Grants and Contributions to Outside Bodies- No Service Recei,08/05/2014,IJ00029080,1000.00,Alan Frisby, 
South Holland District Council,http://statistics.data.gov.uk/id/local-authority/32UF,Environmental Services,Gross Pay,08/05/2014,IJ00029057,522.73,Blue Arrow Ltd, 
South Holland District Council,http://statistics.data.gov.uk/id/local-authority/32UF,Environmental Services,Agency Staff,08/05/2014,IJ00029057,1368.32,Blue Arrow Ltd, 
South Holland District Council,http://statistics.data.gov.uk/id/local-authority/32UF,Environmental Services,Agency Staff,08/05/2014,IJ00029057,898.29,Blue Arrow Ltd, 
South Holland District Council,http://statistics.data.gov.uk/id/local-authority/32UF,Environmental Services,Agency Staff,08/05/2014,IJ00029057,298.75,Blue Arrow Ltd, 
South Holland District Council,http://statistics.data.gov.uk/id/local-authority/32UF,Economic Development,Professional & Contractors Fees,08/05/2014,IJ00029024,7454.90,Breckland Council, 
South Holland District Council,http://statistics.data.gov.uk/id/local-authority/32UF,Democratic Services,Chairman's Costs,08/05/2014,IJ00029014,2218.40,Caterwell East Anglia, 
South Holland District Council,http://statistics.data.gov.uk/id/local-authority/32UF,Finance,Compass Point Business Services,08/05/2014,IJ00029044,248630.66,Compass Point Business Srvcs (East Coast) Ltd, 
South Holland District Council,http://statistics.data.gov.uk/id/local-authority/32UF,Environmental Health,Other local authorities,08/05/2014,IJ00029094,864.00,Fenland District Council., 
South Holland District Council,http://statistics.data.gov.uk/id/local-authority/32UF,Environmental Services,Agency Staff,08/05/2014,IJ00029103,284.78,Integrity Plus Ltd, 
South Holland District Council,http://statistics.data.gov.uk/id/local-authority/32UF,Environmental Services,Agency Staff,08/05/2014,IJ00029103,78.56,Integrity Plus Ltd, 
South Holland District Council,http://statistics.data.gov.uk/id/local-authority/32UF,Environmental Services,Agency Staff,08/05/2014,IJ00029103,363.34,Integrity Plus Ltd, 
South Holland District Council,http://statistics.data.gov.uk/id/local-authority/32UF,Finance,Professional & Contractors Fees,08/05/2014,IJ00029099,18116.50,Lincolnshire County Council, 
South Holland District Council,http://statistics.data.gov.uk/id/local-authority/32UF,Housing Landlord Manager,Professional & Contractors Fees,08/05/2014,IJ00029092,2700.00,Northgate Information Solutions Uk Ltd, 
South Holland District Council,http://statistics.data.gov.uk/id/local-authority/32UF,Planning,Grants and Contributions to Outside Bodies- No Service Recei,08/05/2014,IJ00029040,1000.00,Plann.It Limited, 
South Holland District Council,http://statistics.data.gov.uk/id/local-authority/32UF,Environmental Services,Professional & Contractors Fees,08/05/2014,IJ00029013,3908.89,South Holland Maintenance Ltd, 
South Holland District Council,http://statistics.data.gov.uk/id/local-authority/32UF,Housing,Grants and Contributions to Outside Bodies- No Service Recei,08/05/2014,IJ00029039,1020.00,Stuart Taplin, 
South Holland District Council,http://statistics.data.gov.uk/id/local-authority/32UF,Community Development,Buildings Maintenance - Responsive,08/05/2014,IJ00029058,1781.00,Tyrrell Contractors Ltd, 
South Holland District Council,http://statistics.data.gov.uk/id/local-authority/32UF,Environmental Services,Professional & Contractors Fees,08/05/2014,IJ00029104,1000.00,Tyrrell Contractors Ltd, 
South Holland District Council,http://statistics.data.gov.uk/id/local-authority/32UF,Democratic Services,Other Miscellaneous Expenses,08/05/2014,IJ00029033,2000.00,ALL SAINTS CHURCH, 
South Holland District Council,http://statistics.data.gov.uk/id/local-authority/32UF,ICT and Customer Services,Computer Software Licence Costs,08/05/2014,IJ00029087,650.00,ORBIT UK, 
South Holland District Council,http://statistics.data.gov.uk/id/local-authority/32UF,Democratic Services,Other Revenue Grants Reimbursements & Contributions (Govt),08/05/2014,IJ00029038,2135.00,E FILE UK LTD, 
South Holland District Council,http://statistics.data.gov.uk/id/local-authority/32UF,Balance Sheet,Long Term Debtors - Other,08/05/2014,IJ00029042,2450.00,Dick Hillard Motor Services, 
South Holland District Council,http://statistics.data.gov.uk/id/local-authority/32UF,Environmental Health,Professional & Contractors Fees,08/05/2014,IJ00029107,994.00,Ricardo AEA Ltd, 
South Holland District Council,http://statistics.data.gov.uk/id/local-authority/32UF,Environmental Health,Professional & Contractors Fees,08/05/2014,IJ00029107,3565.00,Ricardo AEA Ltd, 
South Holland District Council,http://statistics.data.gov.uk/id/local-authority/32UF,Environmental Health,Professional & Contractors Fees,08/05/2014,IJ00029107,3616.00,Ricardo AEA Ltd, 
South Holland District Council,http://statistics.data.gov.uk/id/local-authority/32UF,Community Development,Payments to Bodies in Respect of Income Collected,08/05/2014,IJ00029071,6120.50,RSPB South Lincs Local Group, 
South Holland District Council,http://statistics.data.gov.uk/id/local-authority/32UF,Community Development,Commission,08/05/2014,IJ00029071,-510.04,RSPB South Lincs Local Group, 
South Holland District Council,http://statistics.data.gov.uk/id/local-authority/32UF,Capital,Works to Buildings (main Contractor),08/05/2014,IJ00029035,985.00,Belmont, 
South Holland District Council,http://statistics.data.gov.uk/id/local-authority/32UF,Housing Landlord Manager,Buildings Maintenance - Responsive,08/05/2014,IJ00029061,625.00,Justin Doughty, 
South Holland District Council,http://statistics.data.gov.uk/id/local-authority/32UF,Democratic Services,Other Miscellaneous Expenses,08/05/2014,IJ00029032,1350.00,Zest, 
South Holland District Council,http://statistics.data.gov.uk/id/local-authority/32UF,Economic Development,Grants and Contributions to Outside Bodies- No Service Recei,08/05/2014,IJ00029068,25000.00,Welland Engineering Company Limited, 
South Holland District Council,http://statistics.data.gov.uk/id/local-authority/32UF,Housing,Grants and Contributions to Outside Bodies- No Service Recei,08/05/2014,IJ00029085,5000.00,REDACTED PERSONAL INFORMATION,REDACTED
South Holland District Council,http://statistics.data.gov.uk/id/local-authority/32UF,Community Development,Other Miscellaneous Expenses,08/05/2014,IJ00029084,678.26,Valerie Tyler, 
South Holland District Council,http://statistics.data.gov.uk/id/local-authority/32UF,Planning,Professional & Contractors Fees,08/05/2014,IJ00029018,780.00,MatchTech Group Plc, 
South Holland District Council,http://statistics.data.gov.uk/id/local-authority/32UF,Planning,Professional & Contractors Fees,08/05/2014,IJ00029079,840.00,MatchTech Group Plc, 
South Holland District Council,http://statistics.data.gov.uk/id/local-authority/32UF,Environmental Services,Agency Staff,15/05/2014,IJ00029333,13.50,247 Personnel Ltd, 
South Holland District Council,http://statistics.data.gov.uk/id/local-authority/32UF,Environmental Services,Agency Staff,15/05/2014,IJ00029333,513.00,247 Personnel Ltd, 
South Holland District Council,http://statistics.data.gov.uk/id/local-authority/32UF,Environmental Services,Agency Staff,15/05/2014,IJ00029333,135.00,247 Personnel Ltd, 
South Holland District Council,http://statistics.data.gov.uk/id/local-authority/32UF,Environmental Services,Agency Staff,15/05/2014,IJ00029333,40.50,247 Personnel Ltd, 
South Holland District Council,http://statistics.data.gov.uk/id/local-authority/32UF,Community Development,Premises and Room Hire,15/05/2014,IJ00029265,-243.32,50 plus Sports and Social Club, 
South Holland District Council,http://statistics.data.gov.uk/id/local-authority/32UF,Community Development,Other Hire Fees,15/05/2014,IJ00029265,-203.33,50 plus Sports and Social Club, 
South Holland District Council,http://statistics.data.gov.uk/id/local-authority/32UF,Community Development,Payments to Bodies in Respect of Income Collected,15/05/2014,IJ00029265,4199.00,50 plus Sports and Social Club, 
South Holland District Council,http://statistics.data.gov.uk/id/local-authority/32UF,Community Development,Commission,15/05/2014,IJ00029265,-463.25,50 plus Sports and Social Club, 
South Holland District Council,http://statistics.data.gov.uk/id/local-authority/32UF,Asset and Property,Water and Sewerage Charges,15/05/2014,IJ00029129,3149.98,Anglian Water, 
South Holland District Council,http://statistics.data.gov.uk/id/local-authority/32UF,Community Development,Water and Sewerage Charges,15/05/2014,IJ00029163,1684.62,Anglian Water, 
South Holland District Council,http://statistics.data.gov.uk/id/local-authority/32UF,Housing Landlord Manager,Computer Software Licence Costs,15/05/2014,IJ00029162,1821.00,Automico Limited, 
South Holland District Council,http://statistics.data.gov.uk/id/local-authority/32UF,Housing Landlord Manager,Buildings Maintenance - Responsive,15/05/2014,IJ00029229,890.00,Barry Disdel, 
South Holland District Council,http://statistics.data.gov.uk/id/local-authority/32UF,Housing Landlord Manager,Materials and Consumables,15/05/2014,IJ00029315,17.70,B Ayres, 
South Holland District Council,http://statistics.data.gov.uk/id/local-authority/32UF,Housing Landlord Manager,Materials and Consumables,15/05/2014,IJ00029315,577.10,B Ayres, 
South Holland District Council,http://statistics.data.gov.uk/id/local-authority/32UF,Environmental Services,Agency Staff,15/05/2014,IJ00029330,233.45,Blue Arrow Ltd, 
South Holland District Council,http://statistics.data.gov.uk/id/local-authority/32UF,Environmental Services,Agency Staff,15/05/2014,IJ00029330,1425.41,Blue Arrow Ltd, 
South Holland District Council,http://statistics.data.gov.uk/id/local-authority/32UF,Environmental Services,Agency Staff,15/05/2014,IJ00029330,1126.65,Blue Arrow Ltd, 
South Holland District Council,http://statistics.data.gov.uk/id/local-authority/32UF,Environmental Services,Agency Staff,15/05/2014,IJ00029330,161.68,Blue Arrow Ltd, 
South Holland District Council,http://statistics.data.gov.uk/id/local-authority/32UF,Environmental Services,Furniture and Equipment,15/05/2014,IJ00029346,5533.22,Cale Briparc Ltd, 
South Holland District Council,http://statistics.data.gov.uk/id/local-authority/32UF,Community Development,Payments to Bodies in Respect of Income Collected,15/05/2014,IJ00029273,960.00,Caterwell East Anglia, 
South Holland District Council,http://statistics.data.gov.uk/id/local-authority/32UF,Community Development,Commission,15/05/2014,IJ00029273,-80.00,Caterwell East Anglia, 
South Holland District Council,http://statistics.data.gov.uk/id/local-authority/32UF,Housing Landlord Manager,Sewerage Treatment Works,15/05/2014,IJ00029113,20010.18,C.G. Godfrey Ltd, 
South Holland District Council,http://statistics.data.gov.uk/id/local-authority/32UF,Housing Landlord Manager,Fuel & Oil,15/05/2014,IJ00029132,599.17,C H Jones Ltd, 
South Holland District Council,http://statistics.data.gov.uk/id/local-authority/32UF,Environmental Services,Fuel & Oil,15/05/2014,IJ00029132,5.33,C H Jones Ltd, 
South Holland District Council,http://statistics.data.gov.uk/id/local-authority/32UF,Environmental Services,Fuel & Oil,15/05/2014,IJ00029132,401.78,C H Jones Ltd, 
South Holland District Council,http://statistics.data.gov.uk/id/local-authority/32UF,Environmental Services,Fuel & Oil,15/05/2014,IJ00029132,2359.15,C H Jones Ltd, 
South Holland District Council,http://statistics.data.gov.uk/id/local-authority/32UF,Environmental Services,Fuel & Oil,15/05/2014,IJ00029132,823.52,C H Jones Ltd, 
South Holland District Council,http://statistics.data.gov.uk/id/local-authority/32UF,Environmental Services,Fuel & Oil,15/05/2014,IJ00029132,3082.76,C H Jones Ltd, 
South Holland District Council,http://statistics.data.gov.uk/id/local-authority/32UF,Housing Landlord Manager,Fuel & Oil,15/05/2014,IJ00029132,172.28,C H Jones Ltd, 
South Holland District Council,http://statistics.data.gov.uk/id/local-authority/32UF,Housing Landlord Manager,Fuel & Oil,15/05/2014,IJ00029132,268.62,C H Jones Ltd, 
South Holland District Council,http://statistics.data.gov.uk/id/local-authority/32UF,Environmental Services,Fuel & Oil,15/05/2014,IJ00029132,26.09,C H Jones Ltd, 
South Holland District Council,http://statistics.data.gov.uk/id/local-authority/32UF,Environmental Services,Fuel & Oil,15/05/2014,IJ00029132,5.33,C H Jones Ltd, 
South Holland District Council,http://statistics.data.gov.uk/id/local-authority/32UF,Environmental Services,Fuel & Oil,15/05/2014,IJ00029132,62.64,C H Jones Ltd, 
South Holland District Council,http://statistics.data.gov.uk/id/local-authority/32UF,Housing Landlord Manager,Fuel & Oil,15/05/2014,IJ00029258,764.03,C H Jones Ltd, 
South Holland District Council,http://statistics.data.gov.uk/id/local-authority/32UF,Environmental Services,Fuel & Oil,15/05/2014,IJ00029258,5.27,C H Jones Ltd, 
South Holland District Council,http://statistics.data.gov.uk/id/local-authority/32UF,Environmental Services,Fuel & Oil,15/05/2014,IJ00029258,252.77,C H Jones Ltd, 
South Holland District Council,http://statistics.data.gov.uk/id/local-authority/32UF,Environmental Services,Fuel & Oil,15/05/2014,IJ00029258,2611.22,C H Jones Ltd, 
South Holland District Council,http://statistics.data.gov.uk/id/local-authority/32UF,Environmental Services,Fuel & Oil,15/05/2014,IJ00029258,735.16,C H Jones Ltd, 
South Holland District Council,http://statistics.data.gov.uk/id/local-authority/32UF,Environmental Services,Fuel & Oil,15/05/2014,IJ00029258,3528.29,C H Jones Ltd, 
South Holland District Council,http://statistics.data.gov.uk/id/local-authority/32UF,Housing Landlord Manager,Fuel & Oil,15/05/2014,IJ00029258,412.16,C H Jones Ltd, 
South Holland District Council,http://statistics.data.gov.uk/id/local-authority/32UF,Housing Landlord Manager,Fuel & Oil,15/05/2014,IJ00029258,143.73,C H Jones Ltd, 
South Holland District Council,http://statistics.data.gov.uk/id/local-authority/32UF,Environmental Services,Fuel & Oil,15/05/2014,IJ00029258,26.09,C H Jones Ltd, 
South Holland District Council,http://statistics.data.gov.uk/id/local-authority/32UF,Environmental Services,Fuel & Oil,15/05/2014,IJ00029258,5.27,C H Jones Ltd, 
South Holland District Council,http://statistics.data.gov.uk/id/local-authority/32UF,Environmental Health,Fuel & Oil,15/05/2014,IJ00029258,55.53,C H Jones Ltd, 
South Holland District Council,http://statistics.data.gov.uk/id/local-authority/32UF,Environmental Services,Fuel & Oil,15/05/2014,IJ00029258,72.44,C H Jones Ltd, 
South Holland District Council,http://statistics.data.gov.uk/id/local-authority/32UF,Community Development,External Printing and Design Costs,15/05/2014,IJ00029256,645.00,Classic Printers, 
South Holland District Council,http://statistics.data.gov.uk/id/local-authority/32UF,Community Development,Postages,15/05/2014,IJ00029256,1517.00,Classic Printers, 
South Holland District Council,http://statistics.data.gov.uk/id/local-authority/32UF,Asset and Property,Buildings Maintenance - Responsive,15/05/2014,IJ00029117,600.00,Cooleraid Ltd, 
South Holland District Council,http://statistics.data.gov.uk/id/local-authority/32UF,Environmental Services,Commercial Vehicle Lease,15/05/2014,IJ00029176,4726.52,C P Davidson & Sons Ltd, 
South Holland District Council,http://statistics.data.gov.uk/id/local-authority/32UF,Environmental Services,Maintenance,15/05/2014,IJ00029200,4364.53,C P Davidson & Sons Ltd, 
South Holland District Council,http://statistics.data.gov.uk/id/local-authority/32UF,Environmental Services,Maintenance,15/05/2014,IJ00029200,6546.77,C P Davidson & Sons Ltd, 
South Holland District Council,http://statistics.data.gov.uk/id/local-authority/32UF,Environmental Services,Maintenance,15/05/2014,IJ00029200,6550.46,C P Davidson & Sons Ltd, 
South Holland District Council,http://statistics.data.gov.uk/id/local-authority/32UF,Environmental Services,Maintenance,15/05/2014,IJ00029200,164.38,C P Davidson & Sons Ltd, 
South Holland District Council,http://statistics.data.gov.uk/id/local-authority/32UF,Housing,Grants and Contributions to Outside Bodies- No Service Recei,15/05/2014,IJ00029232,3145.00,D Brown (Building Contractors) Ltd, 
South Holland District Council,http://statistics.data.gov.uk/id/local-authority/32UF,Housing,Grants and Contributions to Outside Bodies- No Service Recei,15/05/2014,IJ00029241,4240.00,D Brown (Building Contractors) Ltd, 
South Holland District Council,http://statistics.data.gov.uk/id/local-authority/32UF,Finance,Non -Ringfenced Government Grants - RSG,15/05/2014,IJ00029248,-536939.00,Department For Communities & Local Government, 
South Holland District Council,http://statistics.data.gov.uk/id/local-authority/32UF,Collection Fund,Central Share of NDR Income - Government,15/05/2014,IJ00029248,1007887.00,Department For Communities & Local Government, 
South Holland District Council,http://statistics.data.gov.uk/id/local-authority/32UF,Collection Fund,Transitional Protection Payments,15/05/2014,IJ00029248,-33343.00,Department For Communities & Local Government, 
South Holland District Council,http://statistics.data.gov.uk/id/local-authority/32UF,Finance,Business Rates Tariff,15/05/2014,IJ00029248,525539.00,Department For Communities & Local Government, 
South Holland District Council,http://statistics.data.gov.uk/id/local-authority/32UF,Collection Fund,Contribution to Deficit (NDR),15/05/2014,IJ00029248,-9527.00,Department For Communities & Local Government, 
South Holland District Council,http://statistics.data.gov.uk/id/local-authority/32UF,Capital,Works to Buildings (main Contractor),15/05/2014,IJ00029239,1546.00,Dolphin Mobility East Mids Ltd, 
South Holland District Council,http://statistics.data.gov.uk/id/local-authority/32UF,Housing Landlord Manager,Gas,15/05/2014,IJ00029125,909.19,Espo Gas And Electricity, 
South Holland District Council,http://statistics.data.gov.uk/id/local-authority/32UF,Housing Landlord Manager,Void Repairs,15/05/2014,IJ00029186,565.00,Feneley Flooring Co. Ltd, 
South Holland District Council,http://statistics.data.gov.uk/id/local-authority/32UF,Housing Landlord Manager,Buildings Maintenance - Responsive,15/05/2014,IJ00029138,1200.00,G W Engineering (Lincs) Ltd, 
South Holland District Council,http://statistics.data.gov.uk/id/local-authority/32UF,Housing Landlord Manager,Buildings Maintenance - Responsive,15/05/2014,IJ00029299,9400.00,G W Engineering (Lincs) Ltd, 
South Holland District Council,http://statistics.data.gov.uk/id/local-authority/32UF,Democratic Services,Other Miscellaneous Expenses,15/05/2014,IJ00029260,857.00,Holbeach Womens Institute Hall, 
South Holland District Council,http://statistics.data.gov.uk/id/local-authority/32UF,Environmental Services,Agency Staff,15/05/2014,IJ00029329,284.77,Integrity Plus Ltd, 
South Holland District Council,http://statistics.data.gov.uk/id/local-authority/32UF,Environmental Services,Agency Staff,15/05/2014,IJ00029329,432.09,Integrity Plus Ltd, 
South Holland District Council,http://statistics.data.gov.uk/id/local-authority/32UF,Environmental Services,Agency Staff,15/05/2014,IJ00029329,90.88,Integrity Plus Ltd, 
South Holland District Council,http://statistics.data.gov.uk/id/local-authority/32UF,Housing Landlord Manager,Materials and Consumables,15/05/2014,IJ00029140,5249.89,Jackson Buildbase, 
South Holland District Council,http://statistics.data.gov.uk/id/local-authority/32UF,Housing Landlord Manager,Materials and Consumables,15/05/2014,IJ00029140,4078.28,Jackson Buildbase, 
South Holland District Council,http://statistics.data.gov.uk/id/local-authority/32UF,Housing Landlord Manager,Materials and Consumables,15/05/2014,IJ00029140,393.92,Jackson Buildbase, 
South Holland District Council,http://statistics.data.gov.uk/id/local-authority/32UF,Housing Landlord Manager,Materials and Consumables,15/05/2014,IJ00029172,3167.61,Jackson Buildbase, 
South Holland District Council,http://statistics.data.gov.uk/id/local-authority/32UF,Housing Landlord Manager,Materials and Consumables,15/05/2014,IJ00029172,4652.23,Jackson Buildbase, 
South Holland District Council,http://statistics.data.gov.uk/id/local-authority/32UF,Housing Landlord Manager,Materials and Consumables,15/05/2014,IJ00029172,747.11,Jackson Buildbase, 
South Holland District Council,http://statistics.data.gov.uk/id/local-authority/32UF,Housing Landlord Manager,Materials and Consumables,15/05/2014,IJ00029317,1867.78,Jackson Buildbase, 
South Holland District Council,http://statistics.data.gov.uk/id/local-authority/32UF,Housing Landlord Manager,Materials and Consumables,15/05/2014,IJ00029317,2652.23,Jackson Buildbase, 
South Holland District Council,http://statistics.data.gov.uk/id/local-authority/32UF,Housing Landlord Manager,Materials and Consumables,15/05/2014,IJ00029317,883.31,Jackson Buildbase, 
South Holland District Council,http://statistics.data.gov.uk/id/local-authority/32UF,Housing Landlord Manager,Materials and Consumables,15/05/2014,IJ00029352,1253.28,Jackson Buildbase, 
South Holland District Council,http://statistics.data.gov.uk/id/local-authority/32UF,Housing Landlord Manager,Materials and Consumables,15/05/2014,IJ00029352,3058.82,Jackson Buildbase, 
South Holland District Council,http://statistics.data.gov.uk/id/local-authority/32UF,Housing Landlord Manager,Materials and Consumables,15/05/2014,IJ00029352,733.55,Jackson Buildbase, 
South Holland District Council,http://statistics.data.gov.uk/id/local-authority/32UF,Building Control,Staff Recruitment,15/05/2014,IJ00029134,808.04,Johnston Press Midlands. Division, 
South Holland District Council,http://statistics.data.gov.uk/id/local-authority/32UF,Community Development,Leisure Management,15/05/2014,IJ00029274,5458.54,Leisure Connection Ltd, 
South Holland District Council,http://statistics.data.gov.uk/id/local-authority/32UF,Community Development,Leisure Management,15/05/2014,IJ00029274,5458.54,Leisure Connection Ltd, 
South Holland District Council,http://statistics.data.gov.uk/id/local-authority/32UF,Housing Landlord Manager,Buildings Maintenance - Responsive,15/05/2014,IJ00029287,705.70,L Fragale, 
South Holland District Council,http://statistics.data.gov.uk/id/local-authority/32UF,Housing Landlord Manager,Buildings Maintenance - Responsive,15/05/2014,IJ00029288,505.00,L Fragale, 
South Holland District Council,http://statistics.data.gov.uk/id/local-authority/32UF,Housing Landlord Manager,Buildings Maintenance - Responsive,15/05/2014,IJ00029290,700.50,L Fragale, 
South Holland District Council,http://statistics.data.gov.uk/id/local-authority/32UF,Community Development,Premises and Room Hire,15/05/2014,IJ00029272,-1306.67,Limelight Youth Theatre, 
South Holland District Council,http://statistics.data.gov.uk/id/local-authority/32UF,Community Development,Other Hire Fees,15/05/2014,IJ00029272,-1447.50,Limelight Youth Theatre, 
South Holland District Council,http://statistics.data.gov.uk/id/local-authority/32UF,Community Development,Payments to Bodies in Respect of Income Collected,15/05/2014,IJ00029272,11453.00,Limelight Youth Theatre, 
South Holland District Council,http://statistics.data.gov.uk/id/local-authority/32UF,Community Development,Commission,15/05/2014,IJ00029272,-954.41,Limelight Youth Theatre, 
South Holland District Council,http://statistics.data.gov.uk/id/local-authority/32UF,Housing Landlord Manager,Other Miscellaneous Expenses,15/05/2014,IJ00029151,938.70,Lincolnshire County Council, 
South Holland District Council,http://statistics.data.gov.uk/id/local-authority/32UF,Housing Landlord Manager,Buildings Maintenance - Responsive,15/05/2014,IJ00029284,3680.10,M & R Glass & Glazing Ltd, 
South Holland District Council,http://statistics.data.gov.uk/id/local-authority/32UF,Asset and Property,Buildings Maintenance - Responsive,15/05/2014,IJ00029114,529.25,Newflame Fire Equipment Co.Ltd, 
South Holland District Council,http://statistics.data.gov.uk/id/local-authority/32UF,Housing Landlord Manager,Subscriptions to Organisations and Other Bodies,15/05/2014,IJ00029228,1003.00,Northern Housing Consortium Ltd, 
South Holland District Council,http://statistics.data.gov.uk/id/local-authority/32UF,Housing Landlord Manager,Commercial Vehicle Lease,15/05/2014,IJ00029158,520.00,Northgate Vehicle Hire (East Midlands) Ltd, 
South Holland District Council,http://statistics.data.gov.uk/id/local-authority/32UF,Planning,Professional & Contractors Fees,15/05/2014,IJ00029136,2476.00,Ocella Ltd, 
South Holland District Council,http://statistics.data.gov.uk/id/local-authority/32UF,Housing Landlord Manager,Materials and Consumables,15/05/2014,IJ00029203,821.30,Rexel Uk Ltd, 
South Holland District Council,http://statistics.data.gov.uk/id/local-authority/32UF,Asset and Property,Professional & Contractors Fees,15/05/2014,IJ00029328,1500.00,Robert Doughty Consultancy, 
South Holland District Council,http://statistics.data.gov.uk/id/local-authority/32UF,Community Development,Performers and Entertainers Fees,15/05/2014,IJ00029142,995.93,Scamp Theatre Ltd, 
South Holland District Council,http://statistics.data.gov.uk/id/local-authority/32UF,Community Development,Electricity,15/05/2014,IJ00029279,1952.68,Southern Electric, 
South Holland District Council,http://statistics.data.gov.uk/id/local-authority/32UF,Housing Landlord Manager,Electricity,15/05/2014,IJ00029340,532.33,Southern Electric, 
South Holland District Council,http://statistics.data.gov.uk/id/local-authority/32UF,Housing Landlord Manager,Electricity,15/05/2014,IJ00029355,40.45,Southern Electric, 
South Holland District Council,http://statistics.data.gov.uk/id/local-authority/32UF,Housing Landlord Manager,Electricity,15/05/2014,IJ00029355,17.47,Southern Electric, 
South Holland District Council,http://statistics.data.gov.uk/id/local-authority/32UF,Housing Landlord Manager,Electricity,15/05/2014,IJ00029355,24.27,Southern Electric, 
South Holland District Council,http://statistics.data.gov.uk/id/local-authority/32UF,Housing Landlord Manager,Electricity,15/05/2014,IJ00029355,25.61,Southern Electric, 
South Holland District Council,http://statistics.data.gov.uk/id/local-authority/32UF,Housing Landlord Manager,Electricity,15/05/2014,IJ00029355,24.99,Southern Electric, 
South Holland District Council,http://statistics.data.gov.uk/id/local-authority/32UF,Housing Landlord Manager,Electricity,15/05/2014,IJ00029355,24.68,Southern Electric, 
South Holland District Council,http://statistics.data.gov.uk/id/local-authority/32UF,Housing Landlord Manager,Electricity,15/05/2014,IJ00029355,113.59,Southern Electric, 
South Holland District Council,http://statistics.data.gov.uk/id/local-authority/32UF,Housing Landlord Manager,Electricity,15/05/2014,IJ00029355,67.05,Southern Electric, 
South Holland District Council,http://statistics.data.gov.uk/id/local-authority/32UF,Housing Landlord Manager,Electricity,15/05/2014,IJ00029355,243.60,Southern Electric, 
South Holland District Council,http://statistics.data.gov.uk/id/local-authority/32UF,Housing Landlord Manager,Electricity,15/05/2014,IJ00029355,322.67,Southern Electric, 
South Holland District Council,http://statistics.data.gov.uk/id/local-authority/32UF,Housing Landlord Manager,Electricity,15/05/2014,IJ00029355,239.87,Southern Electric, 
South Holland District Council,http://statistics.data.gov.uk/id/local-authority/32UF,Housing Landlord Manager,Electricity,15/05/2014,IJ00029355,141.91,Southern Electric, 
South Holland District Council,http://statistics.data.gov.uk/id/local-authority/32UF,Housing Landlord Manager,Electricity,15/05/2014,IJ00029355,125.98,Southern Electric, 
South Holland District Council,http://statistics.data.gov.uk/id/local-authority/32UF,Housing Landlord Manager,Electricity,15/05/2014,IJ00029355,163.95,Southern Electric, 
South Holland District Council,http://statistics.data.gov.uk/id/local-authority/32UF,Housing Landlord Manager,Electricity,15/05/2014,IJ00029355,201.00,Southern Electric, 
South Holland District Council,http://statistics.data.gov.uk/id/local-authority/32UF,Housing Landlord Manager,Electricity,15/05/2014,IJ00029355,145.44,Southern Electric, 
South Holland District Council,http://statistics.data.gov.uk/id/local-authority/32UF,Housing Landlord Manager,Electricity,15/05/2014,IJ00029355,206.98,Southern Electric, 
South Holland District Council,http://statistics.data.gov.uk/id/local-authority/32UF,Housing Landlord Manager,Electricity,15/05/2014,IJ00029355,261.42,Southern Electric, 
South Holland District Council,http://statistics.data.gov.uk/id/local-authority/32UF,Housing Landlord Manager,Electricity,15/05/2014,IJ00029355,217.60,Southern Electric, 
South Holland District Council,http://statistics.data.gov.uk/id/local-authority/32UF,Asset and Property,Electricity,15/05/2014,IJ00029355,1325.15,Southern Electric, 
South Holland District Council,http://statistics.data.gov.uk/id/local-authority/32UF,Housing Landlord Manager,Electricity,15/05/2014,IJ00029355,70.66,Southern Electric, 
South Holland District Council,http://statistics.data.gov.uk/id/local-authority/32UF,Housing Landlord Manager,Electricity,15/05/2014,IJ00029355,322.25,Southern Electric, 
South Holland District Council,http://statistics.data.gov.uk/id/local-authority/32UF,Housing Landlord Manager,Electricity,15/05/2014,IJ00029355,227.39,Southern Electric, 
South Holland District Council,http://statistics.data.gov.uk/id/local-authority/32UF,Housing Landlord Manager,Electricity,15/05/2014,IJ00029355,49.63,Southern Electric, 
South Holland District Council,http://statistics.data.gov.uk/id/local-authority/32UF,Housing Landlord Manager,Electricity,15/05/2014,IJ00029355,200.79,Southern Electric, 
South Holland District Council,http://statistics.data.gov.uk/id/local-authority/32UF,Housing Landlord Manager,Electricity,15/05/2014,IJ00029355,199.35,Southern Electric, 
South Holland District Council,http://statistics.data.gov.uk/id/local-authority/32UF,Housing Landlord Manager,Electricity,15/05/2014,IJ00029355,85.92,Southern Electric, 
South Holland District Council,http://statistics.data.gov.uk/id/local-authority/32UF,Housing Landlord Manager,Electricity,15/05/2014,IJ00029355,27.36,Southern Electric, 
South Holland District Council,http://statistics.data.gov.uk/id/local-authority/32UF,Housing Landlord Manager,Electricity,15/05/2014,IJ00029355,121.91,Southern Electric, 
South Holland District Council,http://statistics.data.gov.uk/id/local-authority/32UF,Housing Landlord Manager,Electricity,15/05/2014,IJ00029355,122.83,Southern Electric, 
South Holland District Council,http://statistics.data.gov.uk/id/local-authority/32UF,Housing Landlord Manager,Electricity,15/05/2014,IJ00029355,81.80,Southern Electric, 
South Holland District Council,http://statistics.data.gov.uk/id/local-authority/32UF,Housing Landlord Manager,Electricity,15/05/2014,IJ00029355,145.93,Southern Electric, 
South Holland District Council,http://statistics.data.gov.uk/id/local-authority/32UF,Housing Landlord Manager,Electricity,15/05/2014,IJ00029355,59.43,Southern Electric, 
South Holland District Council,http://statistics.data.gov.uk/id/local-authority/32UF,Housing Landlord Manager,Electricity,15/05/2014,IJ00029355,145.11,Southern Electric, 
South Holland District Council,http://statistics.data.gov.uk/id/local-authority/32UF,Housing Landlord Manager,Electricity,15/05/2014,IJ00029355,168.62,Southern Electric, 
South Holland District Council,http://statistics.data.gov.uk/id/local-authority/32UF,Housing Landlord Manager,Electricity,15/05/2014,IJ00029355,354.66,Southern Electric, 
South Holland District Council,http://statistics.data.gov.uk/id/local-authority/32UF,Housing Landlord Manager,Electricity,15/05/2014,IJ00029355,96.55,Southern Electric, 
South Holland District Council,http://statistics.data.gov.uk/id/local-authority/32UF,Housing Landlord Manager,Electricity,15/05/2014,IJ00029355,137.69,Southern Electric, 
South Holland District Council,http://statistics.data.gov.uk/id/local-authority/32UF,Asset and Property,Electricity,15/05/2014,IJ00029355,48.89,Southern Electric, 
South Holland District Council,http://statistics.data.gov.uk/id/local-authority/32UF,Housing Landlord Manager,Electricity,15/05/2014,IJ00029355,245.75,Southern Electric, 
South Holland District Council,http://statistics.data.gov.uk/id/local-authority/32UF,Housing Landlord Manager,Electricity,15/05/2014,IJ00029355,539.84,Southern Electric, 
South Holland District Council,http://statistics.data.gov.uk/id/local-authority/32UF,Community Development,Electricity,15/05/2014,IJ00029355,5336.67,Southern Electric, 
South Holland District Council,http://statistics.data.gov.uk/id/local-authority/32UF,Environmental Services,Electricity,15/05/2014,IJ00029355,67.28,Southern Electric, 
South Holland District Council,http://statistics.data.gov.uk/id/local-authority/32UF,Housing,Grants and Contributions to Outside Bodies- No Service Recei,15/05/2014,IJ00029244,2401.00,Stuart Taplin, 
South Holland District Council,http://statistics.data.gov.uk/id/local-authority/32UF,Environmental Services,Agency Staff,15/05/2014,IJ00029247,519.39,The Best Connection Group Ltd, 
South Holland District Council,http://statistics.data.gov.uk/id/local-authority/32UF,Environmental Services,Agency Staff,15/05/2014,IJ00029247,65.10,The Best Connection Group Ltd, 
South Holland District Council,http://statistics.data.gov.uk/id/local-authority/32UF,Environmental Services,Agency Staff,15/05/2014,IJ00029247,76.39,The Best Connection Group Ltd, 
South Holland District Council,http://statistics.data.gov.uk/id/local-authority/32UF,Environmental Services,Agency Staff,15/05/2014,IJ00029332,537.30,The Best Connection Group Ltd, 
South Holland District Council,http://statistics.data.gov.uk/id/local-authority/32UF,Environmental Services,Agency Staff,15/05/2014,IJ00029332,65.10,The Best Connection Group Ltd, 
South Holland District Council,http://statistics.data.gov.uk/id/local-authority/32UF,Housing,Grants and Contributions to Outside Bodies- No Service Recei,15/05/2014,IJ00029245,2105.00,Tks Of Holbeach, 
South Holland District Council,http://statistics.data.gov.uk/id/local-authority/32UF,Community Development,Film and Entertainment Costs,15/05/2014,IJ00029146,720.50,Twentieth Century Fox Film Co Ltd, 
South Holland District Council,http://statistics.data.gov.uk/id/local-authority/32UF,Community Development,Film and Entertainment Costs,15/05/2014,IJ00029147,641.99,Twentieth Century Fox Film Co Ltd, 
South Holland District Council,http://statistics.data.gov.uk/id/local-authority/32UF,Community Development,Film and Entertainment Costs,15/05/2014,IJ00029153,851.07,Warner Bros Distributors Ltd, 
South Holland District Council,http://statistics.data.gov.uk/id/local-authority/32UF,Capital,Works to Buildings (main Contractor),15/05/2014,IJ00029252,1060.00,Zurich Municipal, 
South Holland District Council,http://statistics.data.gov.uk/id/local-authority/32UF,Housing Landlord Manager,Void Repairs,15/05/2014,IJ00029179,1330.00,Spotless Cleaning, 
South Holland District Council,http://statistics.data.gov.uk/id/local-authority/32UF,Housing Landlord Manager,Void Repairs,15/05/2014,IJ00029300,590.00,Spotless Cleaning, 
South Holland District Council,http://statistics.data.gov.uk/id/local-authority/32UF,Finance,Banking Charges,15/05/2014,IJ00029246,1019.08,Lloyds TSB, 
South Holland District Council,http://statistics.data.gov.uk/id/local-authority/32UF,Planning,Telephones,15/05/2014,IJ00029313,5.49,DAISY COMMUNICATIONS LTD, 
South Holland District Council,http://statistics.data.gov.uk/id/local-authority/32UF,Housing Landlord Manager,Telephones,15/05/2014,IJ00029313,769.81,DAISY COMMUNICATIONS LTD, 
South Holland District Council,http://statistics.data.gov.uk/id/local-authority/32UF,Housing Landlord Manager,Telephones,15/05/2014,IJ00029313,142.91,DAISY COMMUNICATIONS LTD, 
South Holland District Council,http://statistics.data.gov.uk/id/local-authority/32UF,Finance,Telephones,15/05/2014,IJ00029313,884.22,DAISY COMMUNICATIONS LTD, 
South Holland District Council,http://statistics.data.gov.uk/id/local-authority/32UF,Environmental Health,Telephones,15/05/2014,IJ00029313,10.99,DAISY COMMUNICATIONS LTD, 
South Holland District Council,http://statistics.data.gov.uk/id/local-authority/32UF,Asset and Property,Telephones,15/05/2014,IJ00029313,10.99,DAISY COMMUNICATIONS LTD, 
South Holland District Council,http://statistics.data.gov.uk/id/local-authority/32UF,Asset and Property,Telephones,15/05/2014,IJ00029313,10.99,DAISY COMMUNICATIONS LTD, 
South Holland District Council,http://statistics.data.gov.uk/id/local-authority/32UF,ICT and Customer Services,Telephones,15/05/2014,IJ00029313,10.99,DAISY COMMUNICATIONS LTD, 
South Holland District Council,http://statistics.data.gov.uk/id/local-authority/32UF,ICT and Customer Services,Telephones,15/05/2014,IJ00029313,143.20,DAISY COMMUNICATIONS LTD, 
South Holland District Council,http://statistics.data.gov.uk/id/local-authority/32UF,Revs and Bens,Telephones,15/05/2014,IJ00029313,21.98,DAISY COMMUNICATIONS LTD, 
South Holland District Council,http://statistics.data.gov.uk/id/local-authority/32UF,Building Control,Telephones,15/05/2014,IJ00029313,5.50,DAISY COMMUNICATIONS LTD, 
South Holland District Council,http://statistics.data.gov.uk/id/local-authority/32UF,Environmental Services,Telephones,15/05/2014,IJ00029313,10.99,DAISY COMMUNICATIONS LTD, 
South Holland District Council,http://statistics.data.gov.uk/id/local-authority/32UF,Housing Landlord Manager,Telephones,15/05/2014,IJ00029313,11.08,DAISY COMMUNICATIONS LTD, 
South Holland District Council,http://statistics.data.gov.uk/id/local-authority/32UF,Environmental Services,Telephones,15/05/2014,IJ00029313,11.19,DAISY COMMUNICATIONS LTD, 
South Holland District Council,http://statistics.data.gov.uk/id/local-authority/32UF,Environmental Services,Telephones,15/05/2014,IJ00029313,11.16,DAISY COMMUNICATIONS LTD, 
South Holland District Council,http://statistics.data.gov.uk/id/local-authority/32UF,Environmental Health,Telephones,15/05/2014,IJ00029313,10.99,DAISY COMMUNICATIONS LTD, 
South Holland District Council,http://statistics.data.gov.uk/id/local-authority/32UF,Democratic Services,Telephones,15/05/2014,IJ00029313,10.99,DAISY COMMUNICATIONS LTD, 
South Holland District Council,http://statistics.data.gov.uk/id/local-authority/32UF,Housing Landlord Manager,Telephones,15/05/2014,IJ00029313,10.99,DAISY COMMUNICATIONS LTD, 
South Holland District Council,http://statistics.data.gov.uk/id/local-authority/32UF,Asset and Property,Telephones,15/05/2014,IJ00029313,10.99,DAISY COMMUNICATIONS LTD, 
South Holland District Council,http://statistics.data.gov.uk/id/local-authority/32UF,Housing Landlord Manager,Telephones,15/05/2014,IJ00029313,17.59,DAISY COMMUNICATIONS LTD, 
South Holland District Council,http://statistics.data.gov.uk/id/local-authority/32UF,Finance,Telephones,15/05/2014,IJ00029313,10.99,DAISY COMMUNICATIONS LTD, 
South Holland District Council,http://statistics.data.gov.uk/id/local-authority/32UF,Community Development,Telephones,15/05/2014,IJ00029313,44.12,DAISY COMMUNICATIONS LTD, 
South Holland District Council,http://statistics.data.gov.uk/id/local-authority/32UF,Community Development,Telephones,15/05/2014,IJ00029313,22.11,DAISY COMMUNICATIONS LTD, 
South Holland District Council,http://statistics.data.gov.uk/id/local-authority/32UF,Community Development,Postages,15/05/2014,IJ00029313,10.99,DAISY COMMUNICATIONS LTD, 
South Holland District Council,http://statistics.data.gov.uk/id/local-authority/32UF,Housing Landlord Manager,Furniture and Equipment,15/05/2014,IJ00029178,391.92,VEOLIA ES UK LTD, 
South Holland District Council,http://statistics.data.gov.uk/id/local-authority/32UF,Housing Landlord Manager,Furniture and Equipment,15/05/2014,IJ00029178,391.92,VEOLIA ES UK LTD, 
South Holland District Council,http://statistics.data.gov.uk/id/local-authority/32UF,Housing Landlord Manager,Furniture and Equipment,15/05/2014,IJ00029316,310.74,VEOLIA ES UK LTD, 
South Holland District Council,http://statistics.data.gov.uk/id/local-authority/32UF,Housing Landlord Manager,Furniture and Equipment,15/05/2014,IJ00029316,310.74,VEOLIA ES UK LTD, 
South Holland District Council,http://statistics.data.gov.uk/id/local-authority/32UF,Housing Landlord Manager,Buildings Maintenance - Responsive,15/05/2014,IJ00029311,1320.00,LANDY VENT UK LIMITED, 
South Holland District Council,http://statistics.data.gov.uk/id/local-authority/32UF,Housing,Grants and Contributions to Outside Bodies- No Service Recei,15/05/2014,IJ00029170,3491.00,MPL HOME IMPROVEMENTS SERVICES LINCS LTD, 
South Holland District Council,http://statistics.data.gov.uk/id/local-authority/32UF,Capital,Works to Buildings (main Contractor),15/05/2014,IJ00029238,1993.00,MPL HOME IMPROVEMENTS SERVICES LINCS LTD, 
South Holland District Council,http://statistics.data.gov.uk/id/local-authority/32UF,Housing,Grants and Contributions to Outside Bodies- No Service Recei,15/05/2014,IJ00029240,1750.00,MPL HOME IMPROVEMENTS SERVICES LINCS LTD, 
South Holland District Council,http://statistics.data.gov.uk/id/local-authority/32UF,Housing Landlord Manager,Furniture and Equipment,15/05/2014,IJ00029167,909.83,Hilti GB Ltd, 
South Holland District Council,http://statistics.data.gov.uk/id/local-authority/32UF,Housing Landlord Manager,Furniture and Equipment,15/05/2014,IJ00029167,722.57,Hilti GB Ltd, 
South Holland District Council,http://statistics.data.gov.uk/id/local-authority/32UF,Housing Landlord Manager,Buildings Maintenance - Responsive,15/05/2014,IJ00029242,14000.00,Westrix Electrical, 
South Holland District Council,http://statistics.data.gov.uk/id/local-authority/32UF,Environmental Services,Clothing Uniforms And Laundry,15/05/2014,IJ00029185,576.50,Contego Safety Solutions, 
South Holland District Council,http://statistics.data.gov.uk/id/local-authority/32UF,Finance,Insurance,15/05/2014,IJ00029254,94024.06,Aspen Insurance UK Ltd, 
South Holland District Council,http://statistics.data.gov.uk/id/local-authority/32UF,Housing Landlord Manager,Buildings Maintenance - Responsive,15/05/2014,IJ00029305,900.00,Justin Doughty, 
South Holland District Council,http://statistics.data.gov.uk/id/local-authority/32UF,Community Development,Leisure Management,15/05/2014,IJ00029278,528.37,Leisure in the Community, 
South Holland District Council,http://statistics.data.gov.uk/id/local-authority/32UF,Community Development,Leisure Management,15/05/2014,IJ00029278,528.38,Leisure in the Community, 
South Holland District Council,http://statistics.data.gov.uk/id/local-authority/32UF,Capital,Works to Buildings (main Contractor),15/05/2014,IJ00029262,2338.50,MCP Environmental, 
South Holland District Council,http://statistics.data.gov.uk/id/local-authority/32UF,Housing Landlord Manager,Void Repairs,15/05/2014,IJ00029270,2785.47,Response Construction Maintenance Limited, 
South Holland District Council,http://statistics.data.gov.uk/id/local-authority/32UF,Housing Landlord Manager,Void Repairs,15/05/2014,IJ00029353,4242.75,Response Construction Maintenance Limited, 
South Holland District Council,http://statistics.data.gov.uk/id/local-authority/32UF,Economic Development,Professional & Contractors Fees,15/05/2014,IJ00029133,776.66,Carbon Minded Limited, 
South Holland District Council,http://statistics.data.gov.uk/id/local-authority/32UF,Economic Development,Professional & Contractors Fees,15/05/2014,IJ00029131,1650.00,Lava Marketing Communications Limited, 
South Holland District Council,http://statistics.data.gov.uk/id/local-authority/32UF,Environmental Services,Water and Sewerage Charges,22/05/2014,IJ00029414,617.96,Anglian Water, 
South Holland District Council,http://statistics.data.gov.uk/id/local-authority/32UF,Environmental Services,Professional & Contractors Fees,22/05/2014,IJ00029393,1800.00,A Riddel Skip Hire & Scrap Metal Merchants, 
South Holland District Council,http://statistics.data.gov.uk/id/local-authority/32UF,Environmental Services,Agency Staff,22/05/2014,IJ00029408,65.39,Blue Arrow Ltd, 
South Holland District Council,http://statistics.data.gov.uk/id/local-authority/32UF,Environmental Services,Agency Staff,22/05/2014,IJ00029408,1531.99,Blue Arrow Ltd, 
South Holland District Council,http://statistics.data.gov.uk/id/local-authority/32UF,Environmental Services,Agency Staff,22/05/2014,IJ00029408,842.45,Blue Arrow Ltd, 
South Holland District Council,http://statistics.data.gov.uk/id/local-authority/32UF,Environmental Services,Agency Staff,22/05/2014,IJ00029408,612.68,Blue Arrow Ltd, 
South Holland District Council,http://statistics.data.gov.uk/id/local-authority/32UF,Environmental Services,Agency Staff,22/05/2014,IJ00029408,193.48,Blue Arrow Ltd, 
South Holland District Council,http://statistics.data.gov.uk/id/local-authority/32UF,Housing Landlord Manager,Fuel & Oil,22/05/2014,IJ00029447,679.17,C H Jones Ltd, 
South Holland District Council,http://statistics.data.gov.uk/id/local-authority/32UF,Environmental Services,Fuel & Oil,22/05/2014,IJ00029447,5.88,C H Jones Ltd, 
South Holland District Council,http://statistics.data.gov.uk/id/local-authority/32UF,Environmental Services,Fuel & Oil,22/05/2014,IJ00029447,472.47,C H Jones Ltd, 
South Holland District Council,http://statistics.data.gov.uk/id/local-authority/32UF,Environmental Services,Fuel & Oil,22/05/2014,IJ00029447,2447.65,C H Jones Ltd, 
South Holland District Council,http://statistics.data.gov.uk/id/local-authority/32UF,Environmental Services,Fuel & Oil,22/05/2014,IJ00029447,770.97,C H Jones Ltd, 
South Holland District Council,http://statistics.data.gov.uk/id/local-authority/32UF,Environmental Services,Fuel & Oil,22/05/2014,IJ00029447,2711.58,C H Jones Ltd, 
South Holland District Council,http://statistics.data.gov.uk/id/local-authority/32UF,Housing Landlord Manager,Fuel & Oil,22/05/2014,IJ00029447,320.03,C H Jones Ltd, 
South Holland District Council,http://statistics.data.gov.uk/id/local-authority/32UF,Housing Landlord Manager,Fuel & Oil,22/05/2014,IJ00029447,139.35,C H Jones Ltd, 
South Holland District Council,http://statistics.data.gov.uk/id/local-authority/32UF,Environmental Services,Fuel & Oil,22/05/2014,IJ00029447,47.47,C H Jones Ltd, 
South Holland District Council,http://statistics.data.gov.uk/id/local-authority/32UF,Environmental Services,Fuel & Oil,22/05/2014,IJ00029447,5.89,C H Jones Ltd, 
South Holland District Council,http://statistics.data.gov.uk/id/local-authority/32UF,Community Development,Buildings Maintenance - Responsive,22/05/2014,IJ00029483,789.60,Commercial Cladding Services Ltd, 
South Holland District Council,http://statistics.data.gov.uk/id/local-authority/32UF,Housing Landlord Manager,Professional & Contractors Fees,22/05/2014,IJ00029383,3500.00,Countrywide Housing Solutions, 
South Holland District Council,http://statistics.data.gov.uk/id/local-authority/32UF,Environmental Services,Maintenance,22/05/2014,IJ00029407,1593.68,C P Davidson & Sons Ltd, 
South Holland District Council,http://statistics.data.gov.uk/id/local-authority/32UF,Capital,Works to Buildings (main Contractor),22/05/2014,IJ00029389,21258.15,D Brown (Building Contractors) Ltd, 
South Holland District Council,http://statistics.data.gov.uk/id/local-authority/32UF,Housing Landlord Manager,Furniture and Equipment,22/05/2014,IJ00029391,800.00,Espo, 
South Holland District Council,http://statistics.data.gov.uk/id/local-authority/32UF,HR,Other Employee Expenses,22/05/2014,IJ00029490,82.38,Fideliti Limited, 
South Holland District Council,http://statistics.data.gov.uk/id/local-authority/32UF,Balance Sheet,Payroll SHDC Child Care,22/05/2014,IJ00029490,2059.50,Fideliti Limited, 
South Holland District Council,http://statistics.data.gov.uk/id/local-authority/32UF,Revs and Bens,Court Costs,22/05/2014,IJ00029396,444.00,H M C S, 
South Holland District Council,http://statistics.data.gov.uk/id/local-authority/32UF,Revs and Bens,Court Costs,22/05/2014,IJ00029396,168.00,H M C S, 
South Holland District Council,http://statistics.data.gov.uk/id/local-authority/32UF,Housing Landlord Manager,Void Decoration,22/05/2014,IJ00029498,541.66,Homebase Limited, 
South Holland District Council,http://statistics.data.gov.uk/id/local-authority/32UF,Housing Landlord Manager,Void Decoration,22/05/2014,IJ00029500,606.83,Homebase Limited, 
South Holland District Council,http://statistics.data.gov.uk/id/local-authority/32UF,Housing Landlord Manager,Void Decoration,22/05/2014,IJ00029502,723.48,Homebase Limited, 
South Holland District Council,http://statistics.data.gov.uk/id/local-authority/32UF,Housing Landlord Manager,Void Decoration,22/05/2014,IJ00029504,1471.36,Homebase Limited, 
South Holland District Council,http://statistics.data.gov.uk/id/local-authority/32UF,Environmental Services,Agency Staff,22/05/2014,IJ00029444,73.65,Integrity Plus Ltd, 
South Holland District Council,http://statistics.data.gov.uk/id/local-authority/32UF,Environmental Services,Agency Staff,22/05/2014,IJ00029444,289.70,Integrity Plus Ltd, 
South Holland District Council,http://statistics.data.gov.uk/id/local-authority/32UF,Environmental Services,Agency Staff,22/05/2014,IJ00029444,363.33,Integrity Plus Ltd, 
South Holland District Council,http://statistics.data.gov.uk/id/local-authority/32UF,Housing Landlord Manager,Materials and Consumables,22/05/2014,IJ00029479,4770.49,Jackson Buildbase, 
South Holland District Council,http://statistics.data.gov.uk/id/local-authority/32UF,Housing Landlord Manager,Materials and Consumables,22/05/2014,IJ00029479,3664.67,Jackson Buildbase, 
South Holland District Council,http://statistics.data.gov.uk/id/local-authority/32UF,Housing Landlord Manager,Materials and Consumables,22/05/2014,IJ00029479,426.89,Jackson Buildbase, 
South Holland District Council,http://statistics.data.gov.uk/id/local-authority/32UF,Housing Landlord Manager,Agency Staff,22/05/2014,IJ00029386,848.78,James Andrews Recruitment Solutions, 
South Holland District Council,http://statistics.data.gov.uk/id/local-authority/32UF,Housing Landlord Manager,Materials and Consumables,22/05/2014,IJ00029475,574.66,Kirby & Wells Ltd, 
South Holland District Council,http://statistics.data.gov.uk/id/local-authority/32UF,Housing Landlord Manager,Materials and Consumables,22/05/2014,IJ00029455,620.00,K L Morbey Fencing, 
South Holland District Council,http://statistics.data.gov.uk/id/local-authority/32UF,Housing Landlord Manager,Buildings Maintenance - Responsive,22/05/2014,IJ00029452,1088.78,Kph Plumbing & Heating Specialists, 
South Holland District Council,http://statistics.data.gov.uk/id/local-authority/32UF,Environmental Services,Furniture and Equipment,22/05/2014,IJ00029439,1190.13,Lms Lincoln Ltd, 
South Holland District Council,http://statistics.data.gov.uk/id/local-authority/32UF,Capital,Works to Buildings (main Contractor),22/05/2014,IJ00029499,1360.00,M E Goodyear Property Maintenance, 
South Holland District Council,http://statistics.data.gov.uk/id/local-authority/32UF,Democratic Services,Other Miscellaneous Expenses,22/05/2014,IJ00029381,3000.00,Moulton Parish Council, 
South Holland District Council,http://statistics.data.gov.uk/id/local-authority/32UF,Housing,Grants and Contributions to Outside Bodies- No Service Recei,22/05/2014,IJ00029427,4375.00,Obam Lift Services Ltd, 
South Holland District Council,http://statistics.data.gov.uk/id/local-authority/32UF,Community Development,Fixtures And Fittings,22/05/2014,IJ00029448,507.42,Otis Ltd, 
South Holland District Council,http://statistics.data.gov.uk/id/local-authority/32UF,Community Development,Performers and Entertainers Fees,22/05/2014,IJ00029509,977.42,Picturehouse Entertainment Limited, 
South Holland District Council,http://statistics.data.gov.uk/id/local-authority/32UF,Planning,Grants and Contributions to Outside Bodies- No Service Recei,22/05/2014,IJ00029428,1000.00,Plann.It Limited, 
South Holland District Council,http://statistics.data.gov.uk/id/local-authority/32UF,Balance Sheet,Payroll-Avc,22/05/2014,IJ00029492,1133.13,Prudential Pension Fund SRv, 
South Holland District Council,http://statistics.data.gov.uk/id/local-authority/32UF,Housing Landlord Manager,Materials and Consumables,22/05/2014,IJ00029467,1261.49,Rexel Uk Ltd, 
South Holland District Council,http://statistics.data.gov.uk/id/local-authority/32UF,Asset and Property,Electricity,22/05/2014,IJ00029486,3962.85,Southern Electric, 
South Holland District Council,http://statistics.data.gov.uk/id/local-authority/32UF,Asset and Property,Electricity,22/05/2014,IJ00029488,2212.43,Southern Electric, 
South Holland District Council,http://statistics.data.gov.uk/id/local-authority/32UF,Housing Landlord Manager,Void Repairs,22/05/2014,IJ00029454,2805.00,South Holland Maintenance Ltd, 
South Holland District Council,http://statistics.data.gov.uk/id/local-authority/32UF,Housing Landlord Manager,Void Repairs,22/05/2014,IJ00029456,5620.00,South Holland Maintenance Ltd, 
South Holland District Council,http://statistics.data.gov.uk/id/local-authority/32UF,Capital,Works to Buildings (main Contractor),22/05/2014,IJ00029501,2391.04,Stuart Taplin, 
South Holland District Council,http://statistics.data.gov.uk/id/local-authority/32UF,Environmental Services,Agency Staff,22/05/2014,IJ00029442,65.10,The Best Connection Group Ltd, 
South Holland District Council,http://statistics.data.gov.uk/id/local-authority/32UF,Environmental Services,Agency Staff,22/05/2014,IJ00029442,441.78,The Best Connection Group Ltd, 
South Holland District Council,http://statistics.data.gov.uk/id/local-authority/32UF,Community Development,Performers and Entertainers Fees,22/05/2014,IJ00029516,3500.00,The John Boddy Agency, 
South Holland District Council,http://statistics.data.gov.uk/id/local-authority/32UF,Planning,Professional & Contractors Fees,22/05/2014,IJ00029357,2119.88,Valuation Office Agency, 
South Holland District Council,http://statistics.data.gov.uk/id/local-authority/32UF,Housing Landlord Manager,Void Repairs,22/05/2014,IJ00029453,960.00,Spotless Cleaning, 
South Holland District Council,http://statistics.data.gov.uk/id/local-authority/32UF,Finance,Insurance,22/05/2014,IJ00029436,2692.56,Ace European Group Ltd, 
South Holland District Council,http://statistics.data.gov.uk/id/local-authority/32UF,Capital,Works to Buildings (main Contractor),22/05/2014,IJ00029446,31000.00,Leisure in the Community, 
South Holland District Council,http://statistics.data.gov.uk/id/local-authority/32UF,Chief Executive,Shared Management,22/05/2014,IJ00029430,1518.00,CACI Limited, 
South Holland District Council,http://statistics.data.gov.uk/id/local-authority/32UF,Capital,Works to Buildings (main Contractor),22/05/2014,IJ00029519,156585.00,Willmott Dixon Partnerships Ltd, 
South Holland District Council,http://statistics.data.gov.uk/id/local-authority/32UF,Planning,Professional & Contractors Fees,22/05/2014,IJ00029360,810.00,MatchTech Group Plc, 
South Holland District Council,http://statistics.data.gov.uk/id/local-authority/32UF,Economic Development,Grants and Contributions to Outside Bodies- No Service Recei,22/05/2014,IJ00029435,3805.00,AUBOURN FIREWOOD LTD, 
South Holland District Council,http://statistics.data.gov.uk/id/local-authority/32UF,Environmental Services,Legal Fees,22/05/2014,IJ00029433,2500.00,4 5 GRAYS INN SQUARE, 
South Holland District Council,http://statistics.data.gov.uk/id/local-authority/32UF,Community Development,Other Communication Costs,27/05/2014,IJ00029546,700.14,G T S Security, 
South Holland District Council,http://statistics.data.gov.uk/id/local-authority/32UF,Community Development,Other Communication Costs,27/05/2014,IJ00029548,1881.00,G T S Security, 
South Holland District Council,http://statistics.data.gov.uk/id/local-authority/32UF,Finance,Professional & Contractors Fees,28/05/2014,IJ00029634,607.21,Lloyds TSB, 
South Holland District Council,http://statistics.data.gov.uk/id/local-authority/32UF,Environmental Services,Agency Staff,29/05/2014,IJ00029639,1060.68,Blue Arrow Ltd, 
South Holland District Council,http://statistics.data.gov.uk/id/local-authority/32UF,Environmental Services,Agency Staff,29/05/2014,IJ00029639,1324.58,Blue Arrow Ltd, 
South Holland District Council,http://statistics.data.gov.uk/id/local-authority/32UF,Environmental Services,Agency Staff,29/05/2014,IJ00029639,928.71,Blue Arrow Ltd, 
South Holland District Council,http://statistics.data.gov.uk/id/local-authority/32UF,ICT and Customer Services,Computer Hardware Maintenance,29/05/2014,IJ00029659,701.50,British Telecom Plc, 
South Holland District Council,http://statistics.data.gov.uk/id/local-authority/32UF,Building Control,Buildings Maintenance - Programmed,29/05/2014,IJ00029584,910.00,Brooks (Spalding) Ltd, 
South Holland District Council,http://statistics.data.gov.uk/id/local-authority/32UF,Building Control,Buildings Maintenance - Programmed,29/05/2014,IJ00029585,1105.00,Brooks (Spalding) Ltd, 
South Holland District Council,http://statistics.data.gov.uk/id/local-authority/32UF,Building Control,Buildings Maintenance - Programmed,29/05/2014,IJ00029646,975.00,Brooks (Spalding) Ltd, 
South Holland District Council,http://statistics.data.gov.uk/id/local-authority/32UF,Building Control,Buildings Maintenance - Programmed,29/05/2014,IJ00029647,585.00,Brooks (Spalding) Ltd, 
South Holland District Council,http://statistics.data.gov.uk/id/local-authority/32UF,Housing Landlord Manager,Fuel & Oil,29/05/2014,IJ00029555,271.19,C H Jones Ltd, 
South Holland District Council,http://statistics.data.gov.uk/id/local-authority/32UF,Environmental Services,Fuel & Oil,29/05/2014,IJ00029555,4.72,C H Jones Ltd, 
South Holland District Council,http://statistics.data.gov.uk/id/local-authority/32UF,Environmental Services,Fuel & Oil,29/05/2014,IJ00029555,228.37,C H Jones Ltd, 
South Holland District Council,http://statistics.data.gov.uk/id/local-authority/32UF,Environmental Services,Fuel & Oil,29/05/2014,IJ00029555,1677.72,C H Jones Ltd, 
South Holland District Council,http://statistics.data.gov.uk/id/local-authority/32UF,Environmental Services,Fuel & Oil,29/05/2014,IJ00029555,481.12,C H Jones Ltd, 
South Holland District Council,http://statistics.data.gov.uk/id/local-authority/32UF,Environmental Services,Fuel & Oil,29/05/2014,IJ00029555,2714.67,C H Jones Ltd, 
South Holland District Council,http://statistics.data.gov.uk/id/local-authority/32UF,Housing Landlord Manager,Fuel & Oil,29/05/2014,IJ00029555,115.42,C H Jones Ltd, 
South Holland District Council,http://statistics.data.gov.uk/id/local-authority/32UF,Housing Landlord Manager,Fuel & Oil,29/05/2014,IJ00029555,157.47,C H Jones Ltd, 
South Holland District Council,http://statistics.data.gov.uk/id/local-authority/32UF,Environmental Services,Fuel & Oil,29/05/2014,IJ00029555,24.68,C H Jones Ltd, 
South Holland District Council,http://statistics.data.gov.uk/id/local-authority/32UF,Environmental Services,Fuel & Oil,29/05/2014,IJ00029555,4.72,C H Jones Ltd, 
South Holland District Council,http://statistics.data.gov.uk/id/local-authority/32UF,Environmental Health,Fuel & Oil,29/05/2014,IJ00029555,47.92,C H Jones Ltd, 
South Holland District Council,http://statistics.data.gov.uk/id/local-authority/32UF,Community Development,Professional & Contractors Fees,29/05/2014,IJ00029553,1800.00,Community Council Of Lincolnshire, 
South Holland District Council,http://statistics.data.gov.uk/id/local-authority/32UF,Housing Landlord Manager,Materials and Consumables,29/05/2014,IJ00029574,1005.00,Envirovent Ltd, 
South Holland District Council,http://statistics.data.gov.uk/id/local-authority/32UF,Community Development,Gas,29/05/2014,IJ00029569,951.16,Espo Gas And Electricity, 
South Holland District Council,http://statistics.data.gov.uk/id/local-authority/32UF,Asset and Property,Gas,29/05/2014,IJ00029663,1321.25,Espo Gas And Electricity, 
South Holland District Council,http://statistics.data.gov.uk/id/local-authority/32UF,Community Development,Other Communication Costs,29/05/2014,IJ00029627,700.14,G T S Security, 
South Holland District Council,http://statistics.data.gov.uk/id/local-authority/32UF,Community Development,Other Communication Costs,29/05/2014,IJ00029629,1881.00,G T S Security, 
South Holland District Council,http://statistics.data.gov.uk/id/local-authority/32UF,Housing Landlord Manager,Staff Training Expenses,29/05/2014,IJ00029662,1185.00,Hqn Ltd, 
South Holland District Council,http://statistics.data.gov.uk/id/local-authority/32UF,Housing Landlord Manager,Agency Staff,29/05/2014,IJ00029541,757.02,James Andrews Recruitment Solutions, 
South Holland District Council,http://statistics.data.gov.uk/id/local-authority/32UF,Housing Landlord Manager,Agency Staff,29/05/2014,IJ00029542,848.78,James Andrews Recruitment Solutions, 
South Holland District Council,http://statistics.data.gov.uk/id/local-authority/32UF,Housing Landlord Manager,Buildings Maintenance - Responsive,29/05/2014,IJ00029595,653.20,L Fragale, 
South Holland District Council,http://statistics.data.gov.uk/id/local-authority/32UF,Democratic Services,Lincolnshire Legal Services,29/05/2014,IJ00029566,8553.19,Lincolnshire County Council, 
South Holland District Council,http://statistics.data.gov.uk/id/local-authority/32UF,Democratic Services,Lincolnshire Legal Services,29/05/2014,IJ00029566,5903.50,Lincolnshire County Council, 
South Holland District Council,http://statistics.data.gov.uk/id/local-authority/32UF,ICT and Customer Services,Computer Software Licence Costs,29/05/2014,IJ00029621,3877.02,Northgate Information Solutions Uk Ltd, 
South Holland District Council,http://statistics.data.gov.uk/id/local-authority/32UF,ICT and Customer Services,Furniture and Equipment,29/05/2014,IJ00029592,2050.46,North Kesteven District Council, 
South Holland District Council,http://statistics.data.gov.uk/id/local-authority/32UF,ICT and Customer Services,Computer Software Licence Costs,29/05/2014,IJ00029664,16556.28,Oracle Corporation Uk Ltd, 
South Holland District Council,http://statistics.data.gov.uk/id/local-authority/32UF,Democratic Services,Other Miscellaneous Expenses,29/05/2014,IJ00029594,1564.39,Pinchbeck Village Hall, 
South Holland District Council,http://statistics.data.gov.uk/id/local-authority/32UF,Community Development,Premises and Room Hire,29/05/2014,IJ00029575,-1165.00,S.A.D.O.S., 
South Holland District Council,http://statistics.data.gov.uk/id/local-authority/32UF,Community Development,Other Hire Fees,29/05/2014,IJ00029575,-1324.16,S.A.D.O.S., 
South Holland District Council,http://statistics.data.gov.uk/id/local-authority/32UF,Community Development,Payments to Bodies in Respect of Income Collected,29/05/2014,IJ00029575,7172.00,S.A.D.O.S., 
South Holland District Council,http://statistics.data.gov.uk/id/local-authority/32UF,Community Development,Commission,29/05/2014,IJ00029575,-597.67,S.A.D.O.S., 
South Holland District Council,http://statistics.data.gov.uk/id/local-authority/32UF,Housing,Grants and Contributions to Outside Bodies- No Service Recei,29/05/2014,IJ00029590,1890.00,Stuart Taplin, 
South Holland District Council,http://statistics.data.gov.uk/id/local-authority/32UF,Environmental Services,Agency Staff,29/05/2014,IJ00029600,34.72,The Best Connection Group Ltd, 
South Holland District Council,http://statistics.data.gov.uk/id/local-authority/32UF,Environmental Services,Agency Staff,29/05/2014,IJ00029600,567.68,The Best Connection Group Ltd, 
South Holland District Council,http://statistics.data.gov.uk/id/local-authority/32UF,Environmental Services,Agency Staff,29/05/2014,IJ00029600,76.39,The Best Connection Group Ltd, 
South Holland District Council,http://statistics.data.gov.uk/id/local-authority/32UF,Finance,Insurance,29/05/2014,IJ00029567,4900.00,The Risk Factor Ltd, 
South Holland District Council,http://statistics.data.gov.uk/id/local-authority/32UF,Finance,Fees and Charges General,29/05/2014,IJ00029601,-31.62,UNISON, 
South Holland District Council,http://statistics.data.gov.uk/id/local-authority/32UF,Balance Sheet,Payroll-Unison,29/05/2014,IJ00029601,1264.90,UNISON, 
South Holland District Council,http://statistics.data.gov.uk/id/local-authority/32UF,Environmental Services,Tyres,29/05/2014,IJ00029578,4182.18,Vaculug Traction Tyres Ltd, 
South Holland District Council,http://statistics.data.gov.uk/id/local-authority/32UF,Environmental Services,Tyres,29/05/2014,IJ00029586,2370.29,Vaculug Traction Tyres Ltd, 
South Holland District Council,http://statistics.data.gov.uk/id/local-authority/32UF,Environmental Services,Tyres,29/05/2014,IJ00029586,1420.49,Vaculug Traction Tyres Ltd, 
South Holland District Council,http://statistics.data.gov.uk/id/local-authority/32UF,Environmental Services,Tyres,29/05/2014,IJ00029586,197.42,Vaculug Traction Tyres Ltd, 
South Holland District Council,http://statistics.data.gov.uk/id/local-authority/32UF,Environmental Services,Tyres,29/05/2014,IJ00029586,193.98,Vaculug Traction Tyres Ltd, 
South Holland District Council,http://statistics.data.gov.uk/id/local-authority/32UF,Housing,Grants and Contributions to Outside Bodies- No Service Recei,29/05/2014,IJ00029660,2067.60,WEST LINDSEY DISTRICT COUNCIL, 
South Holland District Council,http://statistics.data.gov.uk/id/local-authority/32UF,Environmental Services,Furniture and Equipment,29/05/2014,IJ00029561,760.00,Westons Garden Machinery, 
South Holland District Council,http://statistics.data.gov.uk/id/local-authority/32UF,Housing Landlord Manager,Void Repairs,29/05/2014,IJ00029599,810.00,Spotless Cleaning, 
South Holland District Council,http://statistics.data.gov.uk/id/local-authority/32UF,Collection Fund,Precept- Lincolnshire County Council,29/05/2014,IJ00029632,2999705.00,Lincolnshire County Council, 
South Holland District Council,http://statistics.data.gov.uk/id/local-authority/32UF,Collection Fund,Precept - Lincolnshire Police,29/05/2014,IJ00029653,500188.39,LOCAL POLICE AUTHORITY FUND ACCOUNT, 
South Holland District Council,http://statistics.data.gov.uk/id/local-authority/32UF,Finance,Internal Drainage Board Levies,29/05/2014,IJ00029656,61025.59,BLACK SLUICE INTERNAL DRAINAGE BOARD, 
South Holland District Council,http://statistics.data.gov.uk/id/local-authority/32UF,Planning,Subscriptions to Organisations and Other Bodies,29/05/2014,IJ00029580,645.00,Haymarket Media Group, 
South Holland District Council,http://statistics.data.gov.uk/id/local-authority/32UF,Capital,Works to Buildings (main Contractor),29/05/2014,IJ00029588,2013.00,MPL HOME IMPROVEMENTS SERVICES LINCS LTD, 
South Holland District Council,http://statistics.data.gov.uk/id/local-authority/32UF,Housing Landlord Manager,Commercial Vehicle Lease,29/05/2014,IJ00029549,3551.27,Lex Autolease Ltd, 
South Holland District Council,http://statistics.data.gov.uk/id/local-authority/32UF,Housing Landlord Manager,Commercial Vehicle Lease,29/05/2014,IJ00029549,43075.75,Lex Autolease Ltd, 
South Holland District Council,http://statistics.data.gov.uk/id/local-authority/32UF,Housing Landlord Manager,Commercial Vehicle Lease,29/05/2014,IJ00029549,24987.21,Lex Autolease Ltd, 
South Holland District Council,http://statistics.data.gov.uk/id/local-authority/32UF,Planning,Professional & Contractors Fees,29/05/2014,IJ00029623,1065.00,MatchTech Group Plc, 
South Holland District Council,http://statistics.data.gov.uk/id/local-authority/32UF,Planning,Professional & Contractors Fees,29/05/2014,IJ00029619,1080.00,MatchTech Group Plc, 
South Holland District Council,http://statistics.data.gov.uk/id/local-authority/32UF,Economic Development,Professional & Contractors Fees,29/05/2014,IJ00029591,7987.50,RESOURCE4GROWTH C I C LTD, 
South Holland District Council,http://statistics.data.gov.uk/id/local-authority/32UF,ICT and Customer Services,Computer Software Licence Costs,29/05/2014,IJ00029645,198550.00,e DBA Limited, 
